{"text_format":"1","workbook":"xlsx","n_sheets":2,"sheets":["Rankings","Results"],"not_rendered":{"charts":0,"images":0,"macros":0,"external_links":0,"defined_names":0,"comments":0,"pivot_tables":0},"unopened":[],"bounds":{"document_bytes":16777216,"sheet_cells":100000,"rows_first":2000,"rows_last":500,"rows_between":2000,"halvings":0,"cell_chars":16384,"cell_head_chars":4096},"cells_cut":0,"cells_raw":0,"read":"whole","date_system":"1900"}

{"sheet":"Rankings","index":0,"n_rows":208,"n_cols":39,"rows_kept":208,"cut":false,"hidden":false,"merged":[[5,9,5,13],[5,4,5,8],[5,0,5,3],[5,34,5,38],[5,29,5,33],[5,24,5,28],[5,19,5,23],[5,14,5,18]]}
["2011 Student Steel Bridge Conference Results"]
[]
["These are  the results reported by the various conferences"]
["Yellow highlighted teams participated in the National Comptition"]
[]
["Ineligibilities",null,null,null,"Construction Speed",null,null,null,null,"Lightness",null,null,null,null,"Display",null,null,null,null,"Stiffness",null,null,null,null,"Economy",null,null,null,null,"Efficiency",null,null,null,null,"Overall"]
["Conference","Chapter",null,"IE","Conference","Chapter","Time","Conf. Rank","Nat'l Rank","Conference","Chapter","Weight","Conf. Rank","Nat'l Rank","Conference","Chapter","Score","Conf. Rank","Nat'l Rank","Conference","Chapter","Agg D","Conf. Rank","Nat'l Rank","Conference","Chapter","Cc ","Conf. Rank","Nat'l Rank","Conference","Chapter","Cs","Conf. Rank","Nat'l Rank","Conference","Chapter","Cc + Cs","Conf. Rank","Nat'l Rank"]
["RockyMtn","Brigham Young University",null,"6","MidPac","University of California, Berkeley",6.5166666766666665,1,{"$f":"RANK(G8,G$8:G$152,1)","v":1},"NorthCentral","Michigan Technological University",141.00000001000001,1,{"$f":"RANK(L8,L$8:L$152,1)","v":1},"UpstateNY","Clarkson University",1,1,{"$f":"RANK(Q8,Q$8:Q$152,1)","v":1},"PacSW","University of Hawaii at Manoa",0.16600008000000005,1,{"$f":"RANK(V8,V$8:V$152,1)","v":1},"SoEast","University of Florida",1351666.6666666868,1,{"$f":"RANK(AA8,AA$8:AA$152,1)","v":1},"NorthCentral","Michigan Technological University",724928.58142667892,1,{"$f":"RANK(AF8,AF$8:AF$152,1)","v":1},"NorthCentral","Michigan Technological University",2132428.5814266787,1,{"$f":"RANK(AK8,AK$8:AK$152,1)","v":1}]
["PacSW","California State University, Los Angeles",null,"6","SoEast","University of Florida",6.6083333533333333,1,{"$f":"RANK(G9,G$8:G$152,1)","v":2},"MidPac","California State University, Chico",144.50000003,1,{"$f":"RANK(L9,L$8:L$152,1)","v":2},"MidAtlantic","Drexel University",1,1,{"$f":"RANK(Q9,Q$8:Q$152,1)","v":1},"PacSW","California State University, Long Beach",0.17000003000000002,2,{"$f":"RANK(V9,V$8:V$152,1)","v":2},"NorthCentral","Michigan Technological University",1407500.00000001,1,{"$f":"RANK(AA9,AA$8:AA$152,1)","v":2},"Midwest","Lakehead University",732090.60918434104,1,{"$f":"RANK(AF9,AF$8:AF$152,1)","v":2},"Midwest","Lakehead University",2546257.2758510076,1,{"$f":"RANK(AK9,AK$8:AK$152,1)","v":2}]
["OhioValley","Carnegie Mellon University",null,"6","Midwest","Lakehead University",7.0166666966666664,1,3,"Midwest","Iowa State University",145.10000001999998,1,3,"UpstateNY","Hudson Valley Community College",1,1,1,"Midwest","Lakehead University",0.24000003,1,3,"OhioValley","University of Akron",1560000.00000001,1,3,"PacSW","University of Hawaii at Manoa",773160.25036933401,1,3,"MidPac","University of California, Berkeley",2627995.5725643001,1,3]
["OhioValley","University of Kentucky",null,"6","MidPac","San Jose State University",8.2333333933333339,2,4,"MidAtlantic","Drexel University",146.20000001,1,4,"PacNW","Idaho State University",1,1,1,"NewEngland","Wentworth Institute of Technology",0.25000000999999999,1,4,"NewEngland","University of New Hampshire",1602500.0000000298,1,4,"PacSW","California State University, Long Beach",860111.3547626303,2,4,"MidAtlantic","Lafayette College",2783490.9456273289,1,4]
["GreatLakes","University of Notre Dame",null,"6","UpstateNY","Suny College of Technology at Canton",8.241666676666668,1,5,"MidAtlantic","Lafayette College",147.00000003,2,5,"NorthCentral","Michigan Technological University",1,1,1,"NorthCentral","Michigan Technological University",0.26200001000000001,1,5,"MidPac","University of California, Berkeley",1659166.6666666768,1,5,"Midwest","Iowa State University",872665.90632506507,2,5,"PacSW","California Polytechnic State University, San Luis Obispo",2913852.8183669355,1,5]
["MidPac","University of the Pacific",null,"6","GreatLakes","University of Wisconsin - Madison",8.5500000200000006,1,6,"Midwest","Lakehead University",147.75000003,2,6,"GreatLakes","Milwaukee School of Engineering",1,1,1,"DeepSouth","Arkansas State University",0.27500002000000001,1,6,"MidAtlantic","Lafayette College",1675000.00000003,1,6,"MidPac","University of California, Berkeley",968828.90589763352,1,6,"NewEngland","University of New Hampshire",3102553.8630108312,1,6]
["PacSW","Arizona State University",null,"9.3","PacNW","University of Alaska Fairbanks",8.9333333733333333,1,7,"MidPac","University of California, Berkeley",148.00000001000001,2,7,"Midwest","North Dakota State University",1,1,1,"MidCont","University of Nebraska-Lincoln at Omaha",0.28500004000000001,1,7,"Midwest","Lakehead University",1814166.6666666968,1,7,"MidPac","San Jose State University",1026363.8278540432,2,7,"MidPac","San Jose State University",3144697.1611873768,2,7]
["GreatLakes","Bradley University",null,"9.3","PacSW","California Polytechnic State University, San Luis Obispo",8.9666667166666674,1,8,"MidAtlantic","Pennsylvania State University",154.00000004,3,8,"PacSW","Northern Arizona University",1,1,1,"DeepSouth","Mississippi State University",0.31700005999999997,2,8,"PacNW","University of Alaska Fairbanks",1816666.6666667068,1,8,"MidAtlantic","Drexel University",1038672.4055062272,1,8,"NewEngland","Massachusetts Institute of Technology",3177921.5262439144,2,8]
["Metro","Columbia University",null,"9.3","UpstateNY","University at Buffalo",9.0250000100000012,2,9,"NorthCentral","University of Michigan",166.50000003,2,9,"Metro","NY Polytechnic",1,1,1,"PacSW","California Polytechnic State University, San Luis Obispo",0.33100004999999999,3,9,"PacSW","California Polytechnic State University, San Luis Obispo",1853333.3333333833,1,9,"PacSW","California Polytechnic State University, San Luis Obispo",1060519.4850336025,3,9,"PacNW","University of Alaska Fairbanks",3194280.7109095957,1,9]
["UpstateNY","École de Technologie Supérieure",null,"9.3","PacNW","Washington State University",9.0583333833333342,2,10,"MidPac","San Jose State University",172.00000005999999,3,10,"UpstateNY","Rensselaer Polytechnic Institute",1,1,1,"DeepSouth","Louisiana Tech University",0.34500003999999995,3,10,"PacNW","University of British Columbia",2028750.0000000298,2,10,"NorthCentral","University of Michigan",1082650.2717628118,2,10,"OhioValley","University of Akron",3195847.2601031098,1,10]
["SoEast","Florida International University",null,"9.3","Carolinas","Georgia Institute of Technology",9.1333333633333336,1,11,"PacSW","University of Hawaii at Manoa",173.00000008000001,1,11,"UpstateNY","Rochester Institute of Technology",1,1,1,"SoEast","University of Miami",0.38469016,1,11,"NewEngland","Massachusetts Institute of Technology",2046666.6666666868,2,11,"MidPac","California State University, Chico",1083575.1500222597,3,11,"UpstateNY","Suny College of Technology at Canton",3229671.5262439041,1,11]
["MidAtlantic","Lehigh University",null,"9.3","NorthCentral","Michigan Technological University",9.3833333433333337,1,12,"SoEast","Southern Polytechnic State University",176.00000003,1,12,"RockyMtn","South Dakota School of Mines and Technology",1,1,1,"Midwest","Iowa State University",0.39000002,2,12,"UpstateNY","Suny College of Technology at Canton",2090416.6666666768,1,12,"DeepSouth","Arkansas State University",1085053.459948095,1,12,"PacSW","University of Hawaii at Manoa",3257326.9170360006,2,12]
["NewEngland","Northeastern University",null,"9.3","PacSW","University of Hawaii at Manoa",9.8166667466666659,2,13,"OhioValley","University of Akron",178.00000001000001,1,13,"MidCont","Southern Illinois University Edwardsville",1,1,1,"MidCont","Kansas State University",0.40500003000000001,2,13,"MidPac","San Jose State University",2118333.3333333936,2,13,"MidAtlantic","Lafayette College",1108490.9456273292,2,13,"SoEast","University of Florida",3309446.9484190727,1,13]
["GreatLakes","Northwestern University",null,"9.3","NewEngland","Massachusetts Institute of Technology",9.9333333533333334,1,14,"OhioValley","Youngstown State University",178.00000001999999,2,14,"UpstateNY","Suny College of Technology at Canton",1,1,1,"Midwest","University of North Dakota",0.41000007000000005,3,14,"Midwest","University of Minnesota, Twin Cities",2130000.00000004,2,14,"NewEngland","Massachusetts Institute of Technology",1131254.8595772476,1,14,"NorthCentral","University of Michigan",3443900.2717628116,2,14]
["Metro","NYC College of Technology",null,"9.3","OhioValley","University of Akron",10.200000010000002,1,15,"DeepSouth","Louisiana State University",179.00000003,1,15,"UpstateNY","United States Military Academy, West Point",1,1,1,"SoEast","Vanderbilt University",0.41299001000000002,2,15,"SoEast","University of Puerto Rico, Mayaguez",2166250.0000001094,2,15,"UpstateNY","Suny College of Technology at Canton",1139254.8595772376,1,15,"Midwest","University of Minnesota, Twin Cities",3575588.4558496568,2,15]
["MidCont","Oklahoma State University",null,"9.3","NewEngland","University of New Hampshire",10.483333363333333,2,16,"PacNW","University of Alaska Fairbanks",189.00000004,1,16,"UpstateNY","University at Buffalo",1,1,1,"MidPac","San Jose State University",0.43000006000000002,1,16,"GreatLakes","University of Wisconsin - Madison",2167500.00000002,1,16,"SoEast","Vanderbilt University",1146486.1492712374,1,16,"MidPac","California State University, Chico",3728575.1500222594,3,16]
["Metro","Rutgers",null,"9.3","PacNW","University of Washington",10.916666726666666,3,17,"Midwest","University of Minnesota, Twin Cities",189.45000003999999,3,17,"OhioValley","University of Akron",1,1,1,"UpstateNY","Suny College of Technology at Canton",0.43750000999999999,1,17,"PacNW","Idaho State University",2187500.0000000098,3,17,"NewEngland","Wentworth Institute of Technology",1250000.00000001,2,17,"Midwest","Iowa State University",3859332.5729917316,3,17]
["MidCont","Southern Illinois University Carbondale",null,"9.3","MidAtlantic","Lafayette College",11.166666696666667,1,18,"MidAtlantic","University of Pittsburgh at Johnstown",192.60000005999999,4,18,"MidPac","University of California, Berkeley",1,1,1,"NewEngland","Massachusetts Institute of Technology",0.43750001999999999,2,18,"PacNW","Montana State University - Bozeman",2270833.3333334131,4,18,"MidAtlantic","University of Pittsburgh at Johnstown",1275975.1500222897,3,18,"PacNW","University of British Columbia",3900597.260103127,2,18]
["Midwest","University of Iowa",null,"9.3","Midwest","University of Wisconsin, Platteville",11.716666726666666,2,19,"NewEngland","University of Connecticut",193.00000008999999,1,19,"Carolinas","University of South Carolina",1,1,1,"TexMex","University of Texas",0.43750011999999999,1,19,"UpstateNY","University at Buffalo",2286250.0000000098,2,19,"DeepSouth","Louisiana Tech University",1319169.9405765841,2,19,"MidAtlantic","Drexel University",4073672.4055062267,2,19]
["DeepSouth","University of Louisiana Lafayette",null,"9.3","MidAtlantic","Drexel University",11.900000010000001,2,20,"PacSW","California State University, Long Beach",194.00000003,2,20,"DeepSouth","University of Tennessee Martin",1,1,1,"RockyMtn","Utah State University",0.44200002999999999,1,20,"PacNW","Washington State University",2324583.3333333833,5,20,"RockyMtn","South Dakota School of Mines and Technology",1357172.799177916,1,20,"Carolinas","Georgia Institute of Technology",4269034.9412806677,1,20]
["OhioValley","Western Kentucky University",null,"9.3","SoEast","University of Tennessee at Knoxville",12.333333473333331,2,21,"NewEngland","Massachusetts Institute of Technology",196.00000001999999,2,21,"TexMex","University of Texas - San Antonio",1,1,1,"MidPac","University of California, Berkeley",0.46200001000000002,2,21,"Carolinas","Georgia Institute of Technology",2343333.3333333628,1,21,"NewEngland","University of Connecticut",1364927.0612816613,3,21,"MidAtlantic","Pennsylvania State University",4275039.5563670881,3,21]
["Virginias","West Virginia University Institute of Technology",null,"10.1.2","RockyMtn","South Dakota School of Mines and Technology",12.466666676666668,1,22,"UpstateNY","Suny College of Technology at Canton",198.00000001000001,1,22,"SoEast","Vanderbilt University",1,1,1,"SoEast","University of South Florida",0.47207009,3,22,"NorthCentral","University of Michigan",2361250.0000000298,2,22,"PacNW","University of Alaska Fairbanks",1377614.0442429287,1,22,"RockyMtn","Colorado School of Mines",4397326.7547813803,1,22]
["PacSW","University of California, San Diego",null,"11.2.7","SoEast","Southern Polytechnic State University",13.050000030000001,3,23,"Virginias","Catholic University of America",198.00000001999999,1,23,"Virginias","Virginia Military Institute",1,1,1,"SoEast","Tennessee Technological University",0.47838006000000005,4,23,"RockyMtn","University of Wyoming",2477500.00000002,1,23,"SoEast","Southern Polytechnic State University",1398287.7836686221,2,23,"PacNW","Washington State University",4403633.2309261058,3,23]
["GreatLakes","University of Evansville",null,"11.3.4","Metro","NJIT",13.166666686666666,1,24,"NewEngland","University of New Hampshire",204.00000003,3,24,"NewEngland","Wentworth Institute of Technology",1,1,1,"PacSW","California Polytechnic State University, Pomona",0.48500013000000003,4,24,"PacSW","University of Hawaii at Manoa",2484166.6666667466,2,24,"Midwest","University of Minnesota, Twin Cities",1445588.4558496566,3,24,"NewEngland","Wentworth Institute of Technology",4413333.3333333442,3,24]
["PacSW","California Baptist University",null,"11.8.2","MidPac","California State University, Chico",13.22500003,3,25,"SoEast","Vanderbilt University",207.00000001000001,2,25,"DeepSouth","Arkansas State University",2,2,25,"NorthCentral","University of Michigan",0.49400002999999998,2,25,"NewEngland","University of Massachusetts Lowell",2621250.0000000596,3,25,"NewEngland","University of New Hampshire",1500053.8630108314,4,25,"RockyMtn","South Dakota School of Mines and Technology",4473839.4658445837,2,25]
["DeepSouth","Christian Brothers University",null,"11.8.2","PacNW","University of British Columbia",13.32500003,4,26,"PacSW","California Polytechnic State University, San Luis Obispo",208.00000005000001,3,26,"TexMex","Autonomous Universidad de Mexico",2,2,25,"NewEngland","Tufts University",0.50000003000000004,3,26,"MidPac","California State University, Chico",2645000.0000000298,3,26,"TexMex","University of Texas",1500454.8595773475,1,26,"SoEast","Southern Polytechnic State University",4660787.7836686224,2,26]
["OhioValley","Cincinnati State Technical and Coummunity College",null,"11.8.2","RockyMtn","Colorado School of Mines",13.350000060000001,2,27,"TexMex","University of Texas - El Paso",208.60000003000002,1,27,"Virginias","Catholic University of America",2,2,25,"RockyMtn","South Dakota School of Mines and Technology",0.52000001000000007,2,27,"RockyMtn","Colorado School of Mines",2730000.0000000605,2,27,"PacSW","California Polytechnic State University, Pomona",1513316.098866188,4,27,"GreatLakes","University of Wisconsin - Madison",4688991.23190278,1,27]
["UpstateNY","Cornell University",null,"11.8.2","MidAtlantic","Pennsylvania State University",13.450000039999999,3,28,"Carolinas","Georgia Institute of Technology",221.00000003,1,28,"Carolinas","Citadel",2,2,25,"MidAtlantic","Drexel University",0.52300001000000007,1,28,"MidAtlantic","Pennsylvania State University",2750000.00000004,2,28,"MidAtlantic","Pennsylvania State University",1525039.5563670881,4,28,"TexMex","University of Texas - El Paso",4696585.0640281895,1,28]
["Metro","Fairleigh Dickinson University",null,"11.8.2","Midwest","University of Minnesota, Twin Cities",13.80000004,3,29,"UpstateNY","University at Buffalo",222.00000001000001,2,29,"Midwest","Iowa State University",2,2,25,"SoEast","University of Alabama",0.54600004999999996,5,29,"PacNW","University of Washington",2789166.6666667266,6,29,"DeepSouth","Louisiana State University",1550614.1264081562,3,29,"OhioValley","Youngstown State University",4833701.6079473216,2,29]
["PacSW","Loyola Marymount University",null,"11.8.2","TexMex","University of Texas - El Paso",14.10000003,1,30,"RockyMtn","South Dakota School of Mines and Technology",226.80000001000002,1,30,"NewEngland","Massachusetts Institute of Technology",2,2,25,"MidPac","California State University, Chico",0.56200003000000009,3,30,"TexMex","University of Texas - El Paso",2880000.0000000298,1,30,"Virginias","Catholic University of America",1571422.8634060149,1,30,"DeepSouth","Louisiana Tech University",4882503.2739099171,1,30]
["TexMex","Monterrey",null,"11.8.2","PacNW","Idaho State University",14.183333343333334,5,31,"DeepSouth","Arkansas State University",228.00000001999999,2,31,"Metro","NJIT",2,2,25,"MidAtlantic","University of Pittsburgh at Johnstown",0.56200006000000002,2,31,"GreatLakes","Pudue University at West Lafayette",2903333.3333333731,2,31,"Metro","NJIT",1582628.2587382789,1,31,"Midwest","University of Wisconsin, Platteville",4915616.564259449,4,31]
["MidAtlantic","Morgan State University",null,"11.8.2","SoEast","University of Puerto Rico, Mayaguez",14.241666776666666,4,32,"MidAtlantic","Bucknell University",229.00000008000001,5,32,"PacNW","Oregon State University",2,2,25,"MidAtlantic","Lafayette College",0.5730000300000001,3,32,"Midwest","Iowa State University",2986666.6666666865,3,32,"NewEngland","Tufts University",1592264.0687119586,5,32,"Metro","NJIT",4934294.9254049445,1,32]
["Carolinas","North Carolina A & T University",null,"11.8.2","Virginias","Catholic University of America",14.35000002,1,33,"PacNW","University of British Columbia",237.00000003,2,33,"MidPac","University of California, Davis",2,2,25,"RockyMtn","Colorado School of Mines",0.58500005999999993,3,33,"Midwest","University of Wisconsin, Platteville",2989166.666666727,4,33,"Midwest","University of North Dakota",1611833.7124817662,4,33,"GreatLakes","Pudue University at West Lafayette",5073226.1125235651,2,33]
["PacNW","Oregon Institute of Technology",null,"11.8.2","GreatLakes","Pudue University at West Lafayette",14.366666706666665,2,34,"Metro","NJIT",246.00000001999999,1,34,"MidAtlantic","University of Delaware",2,2,25,"NewEngland","University of Connecticut",0.62500009000000001,4,34,"MidAtlantic","Drexel University",3035000.0000000098,3,34,"SoEast","University of South Florida",1613216.1468817296,3,34,"SoEast","University of Tennessee at Knoxville",5137614.6356178746,3,34]
["Midwest","South Dakota State University",null,"11.8.2","SoEast","University of Alabama",14.816666716666667,5,35,"GreatLakes","Pudue University at West Lafayette",257.20000003999996,1,35,"SoEast","University of Florida",2,2,25,"Metro","NJIT",0.62900001999999988,1,35,"Metro","Cooper Union",3037500.0000000498,1,35,"OhioValley","University of Akron",1635847.26010311,1,35,"Virginias","Catholic University of America",5158922.8634060146,1,35]
["MidAtlantic","Temple University",null,"11.8.2","Midwest","Iowa State University",14.933333353333333,4,36,"Midwest","University of Wisconsin, Platteville",258.85000006000001,4,36,"MidCont","University of Missouri-Kansas City",2,2,25,"SoEast","University of Florida",0.63400002,6,36,"OhioValley","Youngstown State University",3080000.00000002,2,36,"RockyMtn","Colorado School of Mines",1667326.7547813803,2,36,"PacNW","Idaho State University",5169228.0527807595,4,36]
["DeepSouth","University of Mississippi ",null,"11.8.2","OhioValley","Youngstown State University",15.25000002,2,37,"PacNW","Idaho State University",267.00000001000001,3,37,"PacSW","University of Nevada, Las Vegas",2,2,25,"PacNW","University of Alaska Fairbanks",0.64500004,1,37,"RockyMtn","South Dakota School of Mines and Technology",3116666.6666666768,3,37,"RockyMtn","Utah State University",1719826.2592604544,3,37,"SoEast","University of South Florida",5189882.8135483963,4,37]
["MidCont","University of Oklahoma",null,"11.8.2","NewEngland","Wentworth Institute of Technology",15.516666676666668,3,38,"DeepSouth","Louisiana Tech University",269.00000003999997,3,38,"GreatLakes","University of Wisconsin - Madison",2,2,25,"Virginias","Virginia Polytechnic And State University",0.65972225222222147,1,38,"SoEast","University of Tennessee at Knoxville",3143333.3333334732,3,38,"OhioValley","Youngstown State University",1753701.6079473218,2,38,"NewEngland","University of Connecticut",5326177.0612816615,4,38]
["MidAtlantic","Villanova University",null,"11.8.2","NorthCentral","University of Michigan",15.541666696666669,2,39,"GreatLakes","University of Wisconsin - Madison",272.40000001999999,2,39,"RockyMtn","University of Wyoming",2,2,25,"GreatLakes","University of Illinois at Chicago",0.66100003000000007,1,39,"NewEngland","Wentworth Institute of Technology",3163333.3333333433,4,39,"MidCont","Kansas State University",1766088.5060910259,1,39,"MidCont","Kansas State University",5404838.5060910247,1,39]
["Virginias","West Virginia University",null,"11.8.2","NewEngland","University of Connecticut",15.72500009,4,40,"NewEngland","Wentworth Institute of Technology",275.00000001000001,4,40,"NorthCentral","Western Michigan University",2,2,25,"NewEngland","University of New Hampshire",0.68750003000000004,5,40,"SoEast","Southern Polytechnic State University",3262500.0000000298,4,40,"PacNW","Oregon State University",1814337.792884504,2,40,"UpstateNY","University at Buffalo",5518000.0000000102,2,40]
["DeepSouth","Arkansas State University",null,"None","TexMex","La Salle - Cuernavaca",16.016666776666664,2,41,"PacNW","Oregon State University",276.00000002000002,4,41,"OhioValley","Youngstown State University",2,2,25,"Midwest","University of Minnesota, Twin Cities",0.69000003999999993,4,41,"Metro","NJIT",3351666.6666666865,2,41,"TexMex","University of Texas - El Paso",1816585.0640281898,2,41,"SoEast","University of Puerto Rico, Mayaguez",5709298.0963709615,5,41]
["SoEast","Auburn University",null,"None","RockyMtn","University of Wyoming",16.316666686666668,3,42,"PacSW","California Polytechnic State University, Pomona",277.00000012999999,4,42,"MidPac","California State University, Chico",3,3,42,"Midwest","Minnesota State University, Mankato",0.69000004999999998,5,42,"PacNW","Portland State University",3491666.6666667867,7,42,"PacNW","University of British Columbia",1871847.2601031272,3,42,"PacSW","California State University, Long Beach",5838028.0214292966,3,42]
["TexMex","Autonomous Universidad de Mexico",null,"None","SoEast","Tennessee Technological University",16.825000060000004,6,43,"RockyMtn","Colorado School of Mines",282.60000006000001,2,43,"PacSW","California State University, Long Beach",3,3,42,"SoEast","Southern Polytechnic State University",0.69434003000000011,7,43,"RockyMtn","UC - Denver",3538333.3333334429,4,43,"Carolinas","Georgia Institute of Technology",1925701.6079473349,1,43,"SoEast","University of Alabama",5844305.8241824042,6,43]
["PacNW","Boise State University",null,"None","RockyMtn","Utah State University",16.983333363333333,4,44,"TexMex","University of Texas",288.30000011999999,2,44,"Carolinas","Georgia Institute of Technology",3,3,42,"SoEast","University of Tennessee at Knoxville",0.69700013999999999,8,44,"DeepSouth","Louisiana Tech University",3563333.3333333731,1,44,"Midwest","University of Wisconsin, Platteville",1926449.897592782,5,44,"PacNW","Portland State University",5863089.5300727813,5,44]
["MidAtlantic","Bucknell University",null,"None","NewEngland","University of Massachusetts Lowell",17.075000060000001,5,45,"NewEngland","Tufts University",292.00000003000002,5,45,"MidCont","Kansas State University",3,3,42,"PacNW","Oregon State University",0.70500002000000006,2,45,"SoEast","University of South Florida",3576666.6666667568,5,45,"Virginias","Virginia Polytechnic And State University",1951017.6824700648,2,45,"TexMex","University of Texas",5908788.1929106805,2,45]
["PacSW","California Polytechnic State University, Pomona",null,"None","PacNW","Portland State University",17.158333453333331,6,46,"MidPac","California State University, Sacramento",294.00000004999998,4,46,"MidAtlantic","Lafayette College",3,3,42,"NorthCentral","Michigan State University",0.74500004000000009,3,46,"Virginias","Catholic University of America",3587500.00000002,1,46,"SoEast","University of Florida",1957780.2817524059,4,46,"PacNW","Oregon State University",5977671.1262178374,6,46]
["PacSW","California Polytechnic State University, San Luis Obispo",null,"None","DeepSouth","Louisiana Tech University",17.516666706666665,1,47,"PacNW","Washington State University",297.00000004999998,5,47,"Midwest","Lakehead University",3,3,42,"Virginias","Catholic University of America",0.75000001999999999,2,47,"MidCont","Kansas State University",3638750.0000000293,1,47,"SoEast","University of Tennessee at Knoxville",1994281.3022845415,5,47,"RockyMtn","Utah State University",6025659.5925937882,3,47]
["MidPac","California State University, Chico",null,"None","RockyMtn","UC - Denver",17.541666776666663,5,48,"OhioValley","Geneva College",305.00000007,3,48,"DeepSouth","Louisiana State University",3,3,42,"PacNW","Portland State University",0.75000012000000005,3,48,"OhioValley","Geneva College",3670000.0000000698,3,48,"PacNW","Washington State University",2079049.8975927718,4,48,"Midwest","Minnesota State University, Mankato",6047788.455849668,5,48]
["PacSW","California State University, Fullerton",null,"None","SoEast","University of South Florida",17.583333423333336,7,49,"SoEast","University of South Florida",306.00000009000001,3,49,"Metro","Politechnique",3,3,42,"RockyMtn","New Mexico State University",0.76700009999999996,4,49,"Midwest","Minnesota State University, Mankato",3710000.0000000503,5,49,"SoEast","University of Alabama",2080139.1575157379,6,49,"RockyMtn","University of Wyoming",6301654.8631376075,4,49]
["PacSW","California State University, Long Beach",null,"None","RockyMtn","University of Utah",18.150000029999998,6,50,"RockyMtn","UC - Denver",315.60000011,3,50,"SoEast","Southern Polytechnic State University",3,3,42,"DeepSouth","Louisiana State University",0.78500002999999996,4,50,"SoEast","University of Alabama",3764166.6666667163,6,50,"GreatLakes","Pudue University at West Lafayette",2169892.779190232,1,50,"OhioValley","Geneva College",6389229.8823063122,3,50]
["PacSW","California State University, Northridge",null,"None","OhioValley","Geneva College",18.200000069999998,3,51,"SoEast","University of Tennessee at Knoxville",324.00000014,4,51,"NewEngland","Tufts University",3,3,42,"PacNW","Washington State University",0.82000004999999998,4,51,"NewEngland","University of Connecticut",3961250.0000000899,5,51,"Midwest","Minnesota State University, Mankato",2337788.4558496666,6,51,"DeepSouth","Arkansas State University",6459636.7932814276,2,51]
["MidPac","California State University, Sacramento",null,"None","Midwest","Minnesota State University, Mankato",18.400000050000003,5,52,"Midwest","University of North Dakota",324.20000006999999,5,52,"PacNW","University of British Columbia",3,3,42,"Midwest","University of Wisconsin, Platteville",0.82000006000000003,6,52,"RockyMtn","University of New Mexico",3973333.3333334136,5,52,"PacNW","Portland State University",2371422.8634061152,5,52,"RockyMtn","UC - Denver",6471750.5567994369,5,52]
["NorthCentral","Case Western Reserve University",null,"None","MidPac","California State University, Sacramento",19.066666716666667,4,53,"Virginias","Virginia Polytechnic And State University",327.00000003000002,2,53,"GreatLakes","University of Illinois at Chicago",3,3,42,"MidAtlantic","Pennsylvania State University",0.83100003999999994,4,53,"NorthCentral","Michigan State University",4016250.0000000396,3,53,"NorthCentral","Michigan State University",2503641.6396229938,3,53,"NorthCentral","Michigan State University",6519891.6396229928,3,53]
["Virginias","Catholic University of America",null,"None","RockyMtn","University of New Mexico",19.566666746666666,7,54,"SoEast","University of Puerto Rico, Mayaguez",328.00000010999997,5,54,"NorthCentral","University of Michigan",3,3,42,"OhioValley","University of Akron",0.84000001000000168,1,54,"TexMex","La Salle - Cuernavaca",4064166.6666667764,2,54,"GreatLakes","University of Wisconsin - Madison",2521491.2319027805,2,54,"SoEast","Vanderbilt University",6635652.8159379037,7,54]
["Carolinas","Citadel",null,"None","PacSW","California State University, Long Beach",19.791666696666663,3,55,"SoEast","University of Florida",338.00000002000002,6,55,"NewEngland","University of New Hampshire",3,3,42,"PacNW","University of British Columbia",0.84000003000000001,5,55,"PacNW","Oregon State University",4163333.3333333535,8,55,"SoEast","Tennessee Technological University",2669045.9475598354,7,55,"DeepSouth","Louisiana State University",6843947.45974149,3,55]
["UpstateNY","Clarkson University",null,"None","Metro","Cooper Union",19.850000050000002,2,56,"RockyMtn","Utah State University",341.80000003000004,4,56,"OhioValley","University of Pittsburgh ",3,3,42,"NorthCentral","Case Western Reserve University",0.8710000499999998,4,56,"SoEast","Tennessee Technological University",4206250.0000000605,7,56,"DeepSouth","Mississippi State University",2718175.6725681648,4,56,"SoEast","Tennessee Technological University",6875295.9475598354,8,56]
["Carolinas","Clemson University",null,"None","SoEast","Tongji University",20.200000169999999,8,57,"SoEast","Tongji University",358.00000017000002,7,57,"TexMex","University of Texas - El Paso",3,3,42,"TexMex","University of Texas - El Paso",0.87500003000000004,2,57,"RockyMtn","Utah State University",4305833.3333333638,6,57,"OhioValley","Geneva College",2719229.8823063122,3,57,"Midwest","University of North Dakota",6876833.712481766,6,57]
["OhioValley","Cleveland State University",null,"None","PacNW","Oregon State University",20.66666668666667,7,58,"PacNW","Boise State University",362.00000007,6,58,"RockyMtn","University of Utah",3,3,42,"OhioValley","Youngstown State University",0.91000001999999836,2,58,"TexMex","University of Texas",4408333.3333334532,3,58,"SoEast","Tongji University",2808883.1249748352,8,58,"RockyMtn","University of New Mexico",7106221.3286063615,6,58]
["RockyMtn","Colorado School of Mines",null,"None","DeepSouth","Louisiana State University",20.933333363333332,2,59,"MidCont","Kansas State University",364.20000003000001,1,59,"RockyMtn","Utah State University",3,3,42,"Carolinas","Georgia Institute of Technology",0.91000003000000007,1,59,"MidCont","University of Nebraska-Lincoln at Omaha",4458333.3333333731,2,59,"GreatLakes","University of Illinois at Chicago",2815286.7223319444,3,59,"MidAtlantic","University of Pittsburgh at Johnstown",7132225.1500222888,4,59]
["RockyMtn","Colorado State",null,"None","DeepSouth","Arkansas State University",21.258333353333335,3,60,"PacNW","Portland State University",398.00000011999998,7,60,"Virginias","Virginia Polytechnic And State University",3,3,42,"Metro","Manhattan College",0.92400004000000002,2,60,"RockyMtn","University of Utah",4597500.0000000298,7,60,"Virginias","Virginia Military Institute",2856000.0000000098,3,60,"PacNW","University of Washington",7227789.54447967,7,60]
["Metro","Cooper Union",null,"None","SoEast","Vanderbilt University",21.716666676666666,9,61,"SoEast","University of Alabama",399.00000004999998,8,61,"Carolinas","Clemson University",4,4,61,"GreatLakes","Pudue University at West Lafayette",0.96700003999999917,2,61,"MidPac","California State University, Sacramento",4826666.6666667163,4,61,"RockyMtn","UC - Denver",2933417.2234661039,4,61,"Virginias","Virginia Polytechnic And State University",7500601.0158033986,2,61]
["MidAtlantic","Drexel University",null,"None","TexMex","University of Texas",21.891666786666665,3,62,"Midwest","Minnesota State University, Mankato",412.50000004999998,6,62,"OhioValley","Cleveland State University",4,4,61,"Virginias","Virginia Military Institute",1.0000000099999999,3,62,"PacSW","California State University, Long Beach",4977916.6666666958,3,62,"PacNW","Idaho State University",2981728.0527807595,6,62,"TexMex","La Salle - Cuernavaca",7851617.6497916188,3,62]
["SoEast","Florida A&M University-Florida State University",null,"None","Virginias","Virginia Polytechnic And State University",21.958333363333335,2,63,"Virginias","Virginia Military Institute",414.00000001000001,3,63,"SoEast","Florida Institute of Technology",4,4,61,"RockyMtn","University of New Mexico",1.01400008,5,63,"SoEast","Tongji University",5110000.0000001704,8,63,"SoEast","University of Miami",3034317.30103281,9,63,"MidCont","University of Nebraska-Lincoln at Omaha",7876111.3714431087,2,63]
["SoEast","Florida Gulf Coast University",null,"None","MidCont","University of Nebraska-Lincoln at Omaha",21.991666706666663,1,64,"NorthCentral","Michigan State University",433.00000003999997,3,64,"Virginias","Howard University",4,4,61,"Metro","Cooper Union",1.0430000499999998,3,64,"Midwest","University of North Dakota",5265000.0000000698,6,64,"MidAtlantic","Bucknell University",3061286.8284871243,5,64,"SoEast","Tongji University",7918883.1249748357,9,64]
["SoEast","Florida Institute of Technology",null,"None","MidAtlantic","University of Pittsburgh at Johnstown",23.425000060000002,4,65,"Carolinas","Citadel",442.00000002000002,2,65,"DeepSouth","Louisiana Tech University",4,4,61,"RockyMtn","University of Utah",1.0920000300000001,6,65,"DeepSouth","Louisiana State University",5293333.3333333638,2,65,"RockyMtn","University of New Mexico",3132887.9952730285,5,65,"PacSW","California Polytechnic State University, Pomona",8014982.7655328549,4,65]
["OhioValley","Geneva College",null,"None","MidCont","Kansas State University",23.85833336333333,2,{"$f":"RANK(G73,G$8:G$152,1)","v":66},"RockyMtn","University of New Mexico",476.90000007999998,5,{"$f":"RANK(L73,L$8:L$152,1)","v":66},"Metro","Manhattan College",4,4,{"$f":"RANK(Q73,Q$8:Q$152,1)","v":61},"SoEast","Tongji University",1.0960001700000002,9,{"$f":"RANK(V73,V$8:V$152,1)","v":66},"DeepSouth","Arkansas State University",5374583.3333333526,3,{"$f":"RANK(AA73,AA$8:AA$152,1)","v":66},"UpstateNY","University at Buffalo",3231750.0000000102,2,{"$f":"RANK(AF73,AF$8:AF$152,1)","v":66},"NewEngland","University of Massachusetts Lowell",8277433.3638794459,5,{"$f":"RANK(AK73,AK$8:AK$152,1)","v":66}]
["Virginias","George Mason",null,"None","SoEast","University of Miami",24.000000159999999,10,67,"TexMex","La Salle - Cuernavaca",527.60000011,3,67,"NorthCentral","Michigan State University",4,4,61,"GreatLakes","University of Wisconsin - Madison",1.125000020000001,3,67,"SoEast","Vanderbilt University",5489166.6666666763,9,67,"MidCont","University of Nebraska-Lincoln at Omaha",3417778.0381097756,2,67,"RockyMtn","University of Utah",8479652.3252691701,7,67]
["Virginias","George Washington",null,"None","PacSW","California Polytechnic State University, Pomona",25.766666796666669,4,68,"GreatLakes","University of Illinois at Chicago",542.60000003000005,3,68,"MidAtlantic","Pennsylvania State University",4,4,61,"OhioValley","Geneva College",1.1600000699999984,3,68,"Virginias","Virginia Polytechnic And State University",5549583.3333333638,2,68,"Metro","Manhattan College",3437833.0988293081,2,68,"Metro","Cooper Union",8835726.1811119858,2,68]
["Carolinas","Georgia Institute of Technology",null,"None","Midwest","University of North Dakota",26.025000069999997,6,69,"RockyMtn","University of Wyoming",544.80000001999997,6,69,"GreatLakes","Pudue University at West Lafayette",4,4,61,"RockyMtn","University of Wyoming",1.2340000200000001,7,69,"TexMex","Autonomous Universidad de Mexico",5795000.0000000205,4,69,"SoEast","University of Puerto Rico, Mayaguez",3543048.0963709615,10,69,"MidPac","California State University, Sacramento",9024641.7151143365,4,69]
["Virginias","Howard University",null,"None","NorthCentral","Michigan State University",26.575000039999999,3,70,"PacNW","University of Washington",553.00000006000005,8,70,"MidPac","San Francisco State University",4,4,61,"RockyMtn","UC - Denver",1.2470001099999999,8,70,"MidAtlantic","University of Pittsburgh at Johnstown",5856250.0000000596,4,70,"PacNW","Boise State University",3741307.6897791796,7,70,"SoEast","University of Miami",9094317.3010328095,10,70]
["UpstateNY","Hudson Valley Community College",null,"None","Metro","Manhattan College",29.091666706666665,3,71,"SoEast","Tennessee Technological University",568.00000006000005,9,71,"TexMex","Texas Tech",4,4,61,"TexMex","La Salle - Cuernavaca",1.25000011,3,71,"TexMex","University of Houston",5885000.0000000689,5,71,"TexMex","La Salle - Cuernavaca",3787450.9831249523,3,71,"MidAtlantic","Bucknell University",9442953.4951537903,5,71]
["PacNW","Idaho State University",null,"None","DeepSouth","Mississippi State University",29.250000060000001,4,72,"Metro","Manhattan College",593.00000004000003,2,72,"PacNW","University of Alaska Fairbanks",4,4,61,"PacNW","Idaho State University",1.3650000099999999,6,72,"SoEast","University of Miami",6060000.0000001602,10,72,"RockyMtn","University of Wyoming",3824154.8631376079,6,72,"NewEngland","Tufts University",9923097.4020452891,6,72]
["GreatLakes","Illinois Institute of Technology",null,"None","NorthCentral","Case Western Reserve University",30.800000050000001,4,73,"DeepSouth","Mississippi State University",626.00000006000005,4,73,"PacSW","University of Arizona",4,4,61,"MidAtlantic","Bucknell University",1.47300008,5,73,"MidAtlantic","Bucknell University",6381666.6666667471,5,73,"RockyMtn","University of Utah",3882152.3252691692,7,73,"DeepSouth","Mississippi State University",10090675.672568165,4,73]
["Midwest","Iowa State University",null,"None","MidAtlantic","Bucknell University",31.608333413333334,5,74,"RockyMtn","University of Utah",628.20000002999996,7,74,"Midwest","University of Minnesota, Twin Cities",4,4,61,"PacNW","University of Washington",1.5100000600000001,7,74,"PacSW","California Polytechnic State University, Pomona",6501666.6666667974,4,74,"MidPac","California State University, Sacramento",4197975.0484476704,4,74,"Metro","Manhattan College",12285333.098829307,3,74]
["MidCont","Kansas State University",null,"None","NewEngland","Tufts University",33.083333363333331,6,75,"NewEngland","University of Massachusetts Lowell",682.00000006000005,6,75,"MidCont","University of Nebraska-Lincoln at Omaha",4,4,61,"SoEast","University of Puerto Rico, Mayaguez",1.51200011,10,75,"NewEngland","Merrimack College",6552500.0000000698,6,75,"PacNW","University of Washington",4438622.877813004,8,75,"NorthCentral","Case Western Reserve University",12743457.783730336,4,75]
["TexMex","La Salle - Cuernavaca",null,"None","MidPac","University of California, Davis",36.450000020000004,5,76,"SoEast","University of Miami",687.00000016000001,10,76,"PacSW","California Polytechnic State University, San Luis Obispo",5,5,76,"PacNW","Boise State University",1.5400000699999998,8,76,"MidAtlantic","University of Delaware",7171250.0000000186,6,76,"Carolinas","Citadel",4935607.0210807594,2,76,"PacNW","Boise State University",40751307.689779177,8,76]
["TexMex","La Salle - Mexico City",null,"None","NewEngland","Universite Laval",36.658333383333328,7,77,"MidCont","University of Nebraska-Lincoln at Omaha",808.80000003999999,2,77,"MidPac","California State University, Sacramento",5,5,76,"UpstateNY","University at Buffalo",1.5625000099999999,2,77,"NewEngland","Universite Laval",7361666.6666667163,7,77,"NorthCentral","Case Western Reserve University",4983457.7837303355,4,77,"Carolinas","Citadel",41645607.021080762,2,77]
["MidAtlantic","Lafayette College",null,"None","TexMex","Autonomous Universidad de Mexico",38.433333353333339,4,78,"Carolinas","Clemson University",848.00000004000003,3,78,"NorthCentral","Case Western Reserve University",5,5,76,"NewEngland","University of Massachusetts Lowell",1.8125000600000001,6,78,"DeepSouth","Mississippi State University",7372500.0000000596,4,78,"NewEngland","University of Massachusetts Lowell",5656183.3638794459,6,78,"RockyMtn","New Mexico State University",44603672.847030684,8,78]
["Midwest","Lakehead University",null,"None","MidCont","University of Kansas",38.725000080000001,3,79,"Virginias","Howard University",900.00000004000003,4,79,"Metro","Cooper Union",5,5,76,"MidPac","California State University, Sacramento",1.8510000499999999,4,79,"TexMex","University of Texas - San Antonio",7412500.0000000102,6,79,"Metro","Cooper Union",5798226.1811119849,3,79,"Virginias","Virginia Military Institute",48416000.000000007,3,79]
["DeepSouth","Louisiana State University",null,"None","TexMex","University of Houston",38.833333403333327,5,80,"PacSW","University of California, Los Angeles",900.00000007000006,5,80,"Midwest","Minnesota State University, Mankato",5,5,76,"Carolinas","Citadel",1.9100000200000002,2,80,"NorthCentral","Case Western Reserve University",7760000.0000000503,4,80,"RockyMtn","New Mexico State University",8023672.847030689,8,80,"GreatLakes","University of Illinois at Chicago",48657786.722331941,3,80]
["DeepSouth","Louisiana Tech University",null,"None","SoEast","Florida A&M University-Florida State University",39.416666816666662,11,81,"PacNW","University of Alaska Anchorage",906.00000010999997,9,81,"Carolinas","North Carolina State University",5,5,76,"UpstateNY","Clarkson University",30.000000010000001,3,81,"MidCont","University of Kansas",7775000.0000000801,3,81,"Carolinas","Clemson University",200572120.7018598,3,81,"PacNW","Montana State University - Bozeman",203906954.0351932,9,81]
["Metro","Manhattan College",null,"None","GreatLakes","University of Illinois at Urbana Champaign",40.70000005,3,82,"GreatLakes","Milwaukee School of Engineering",908.00000001000001,4,82,"Virginias","Old Dominion University",5,5,76,"UpstateNY","Hudson Valley Community College",30.000000010000001,3,81,"SoEast","Florida A&M University-Florida State University",7913333.333333483,11,82,"Virginias","Howard University",200780120.7018598,4,82,"TexMex","Autonomous Universidad de Mexico",207349920.7018598,4,82]
["NewEngland","Massachusetts Institute of Technology",null,"None","GreatLakes","Milwaukee School of Engineering",41.416666676666665,4,83,"NewEngland","Merrimack College",947.00000007000006,7,83,"TexMex","Texas A&M University",5,5,76,"GreatLakes","Milwaukee School of Engineering",30.000000010000001,4,81,"PacSW","University of California, Los Angeles",8190000.0000000708,5,83,"PacSW","University of California, Los Angeles",200780120.70185983,5,83,"NewEngland","Merrimack College",207520620.70185983,7,83]
["NewEngland","Merrimack College",null,"None","Metro","NY Polytechnic",41.950000010000004,4,84,"PacSW","University of Arizona",950.00000004000003,6,84,"NewEngland","Universite Laval",5,5,76,"Midwest","North Dakota State University",30.000000010000001,7,81,"RockyMtn","Colorado State",8247500.0000000903,8,84,"PacNW","University of Alaska Anchorage",200804120.70185989,9,84,"TexMex","University of Houston",208444320.70185983,5,84]
["NorthCentral","Michigan State University",null,"None","Metro","Politechnique",42.658333363333334,5,85,"MidCont","University of Kansas",950.00000007999995,3,85,"SoEast","University of Alabama",5,5,76,"PacSW","Northern Arizona University",30.000000010000001,5,81,"NewEngland","Tufts University",8330833.333333361,8,85,"GreatLakes","Milwaukee School of Engineering",200812120.70185977,4,85,"MidCont","University of Kansas",208755120.70185986,3,85]
["NorthCentral","Michigan Technological University",null,"None","NewEngland","Merrimack College",43.28333340333333,8,86,"PacSW","University of Nevada, Las Vegas",967.00000002000002,7,86,"OhioValley","University of Cincinnati",5,5,76,"Metro","NY Polytechnic",30.000000010000001,4,81,"TexMex","Texas Tech",8740000.0000000391,7,86,"NewEngland","Merrimack College",200968120.70185983,7,86,"MidAtlantic","University of Delaware",208883370.7018598,6,86]
["GreatLakes","Milwaukee School of Engineering",null,"None","TexMex","Texas Tech",43.700000040000006,6,87,"PacSW","University of California, Irvine",975.00000011999998,8,87,"GreatLakes","University of Illinois at Urbana Champaign",5,5,76,"UpstateNY","Rensselaer Polytechnic Institute",30.000000010000001,3,81,"Metro","Manhattan College",8847500.0000000391,3,87,"PacSW","University of Arizona",200980120.7018598,6,87,"PacSW","University of California, Los Angeles",208970120.70185983,5,87]
["Midwest","Minnesota State University, Mankato",null,"None","Carolinas","North Carolina State University",43.983333383333331,2,88,"NorthCentral","Case Western Reserve University",1002.00000005,4,88,"MidAtlantic","University of Maryland",5,5,76,"UpstateNY","Rochester Institute of Technology",30.000000010000001,3,81,"Carolinas","North Carolina State University",8856666.6666667163,2,88,"MidCont","University of Kansas",200980120.70185986,3,88,"NewEngland","Universite Laval",209117787.36852649,8,88]
["DeepSouth","Mississippi State University",null,"None","OhioValley","University of Pittsburgh ",44.17500003,4,89,"PacSW","California State University, Northridge",1009.00000006,9,89,"DeepSouth","University of Memphis",5,5,76,"MidCont","Southern Illinois University Edwardsville",30.000000010000001,3,81,"OhioValley","University of Pittsburgh ",8865000.0000000298,4,89,"PacSW","University of Nevada, Las Vegas",201048120.7018598,7,89,"TexMex","University of Texas - San Antonio",209440220.70185977,6,89]
["MidCont","Missouri University of Science and Technology",null,"None","Carolinas","Clemson University",44.341666706666672,3,90,"GreatLakes","Illinois Institute of Technology",1012.80000006,5,90,"MidCont","University of Missouri-Columbia",5,5,76,"UpstateNY","United States Military Academy, West Point",30.000000010000001,3,81,"MidCont","University of Missouri-Kansas City",8883333.3333333526,4,90,"PacSW","University of California, Irvine",201080120.70185989,8,90,"SoEast","Florida A&M University-Florida State University",209453454.03519326,11,90]
["PacNW","Montana State University - Bozeman",null,"None","MidCont","University of Missouri-Kansas City",44.416666686666666,4,91,"TexMex","Texas Tech",1024.9000000400001,4,91,"RockyMtn","US Air Force Academy",5,5,76,"Carolinas","University of South Carolina",30.000000010000001,3,81,"Carolinas","Clemson University",8928333.3333333731,3,91,"PacSW","California State University, Northridge",201216120.70185983,9,91,"Carolinas","Clemson University",209500454.03519315,3,91]
["RockyMtn","New Mexico State University",null,"None","PacNW","Montana State University - Bozeman",44.816666746666662,8,92,"PacSW","California State University, Fullerton",1025.0000001000001,10,92,"PacNW","Washington State University",5,5,76,"DeepSouth","University of Tennessee Martin",30.000000010000001,5,81,"NewEngland","University of Massachusetts Amherst",9121666.666666748,9,92,"GreatLakes","Illinois Institute of Technology",201231320.70185983,5,92,"TexMex","Texas Tech",210019720.7018598,7,92]
["RockyMtn","New Mexico Tech",null,"None","Carolinas","University of South Carolina",45.150000009999999,4,93,"Metro","NY Polytechnic",1027.0000000099999,3,93,"PacSW","California State University, Northridge",6,6,93,"TexMex","University of Texas - San Antonio",30.000000010000001,4,81,"MidPac","University of California, Davis",9142500.0000000205,5,93,"TexMex","Texas Tech",201279720.7018598,4,93,"RockyMtn","Colorado State",210421220.70185986,9,93]
["Metro","NJIT",null,"None","NewEngland","University of Massachusetts Amherst",45.308333413333337,9,94,"MidCont","Southern Illinois University Edwardsville",1050.0000000099999,4,94,"RockyMtn","Colorado School of Mines",6,6,93,"TexMex","Autonomous Universidad de Mexico",30.000000020000002,5,94,"SoEast","University of Central Florida",9188333.3333334122,12,94,"PacSW","California State University, Fullerton",201280120.70185986,10,94,"PacNW","University of Alaska Anchorage",210440787.36852655,10,94]
["Carolinas","North Carolina State University",null,"None","SoEast","University of Central Florida",45.791666746666664,12,95,"MidPac","University of California, Davis",1075.00000002,5,95,"Virginias","George Mason",6,6,93,"MidPac","University of California, Davis",30.000000020000002,5,94,"PacSW","California State University, Northridge",9383333.3333333936,6,95,"Metro","NY Polytechnic",201288120.70185977,4,95,"PacSW","California State University, Northridge",210599454.03519318,6,95]
["Midwest","North Dakota State University",null,"None","PacSW","California State University, Northridge",46.766666726666664,6,96,"MidCont","University of Missouri-Columbia",1075.0000000499999,5,96,"GreatLakes","Illinois Institute of Technology",6,6,93,"MidAtlantic","University of Delaware",30.000000020000002,6,94,"MidCont","University of Missouri-Columbia",9493750.0000000503,5,96,"MidCont","Southern Illinois University Edwardsville",201380120.70185977,4,96,"MidPac","University of California, Davis",210622620.7018598,5,96]
["PacSW","Northern Arizona University",null,"None","MidAtlantic","University of Delaware",47.608333353333336,6,97,"MidCont","Missouri University of Science and Technology",1075.00000006,6,97,"DeepSouth","Mississippi State University",6,6,93,"MidCont","University of Missouri-Kansas City",30.000000020000002,4,94,"OhioValley","University of Cincinnati",9590000.0000000503,5,97,"MidPac","University of California, Davis",201480120.7018598,5,97,"Carolinas","North Carolina State University",210844787.36852649,4,97]
["NewEngland","Norwich University",null,"None","OhioValley","University of Cincinnati",47.650000049999996,5,98,"Metro","Politechnique",1078.0000000299999,4,98,"MidCont","Missouri University of Science and Technology",6,6,93,"PacSW","University of Nevada, Las Vegas",30.000000020000002,6,94,"PacNW","University of Alaska Anchorage",9636666.6666667759,9,98,"MidCont","Missouri University of Science and Technology",201480120.70185983,5,98,"MidCont","University of Missouri-Columbia",210973870.70185983,4,98]
["Metro","NY Polytechnic",null,"None","PacNW","University of Alaska Anchorage",48.033333443333333,9,99,"RockyMtn","US Air Force Academy",1079.0000000499999,8,99,"OhioValley","Ohio University",6,6,93,"NorthCentral","Western Michigan University",30.000000020000002,5,94,"UpstateNY","Clarkson University",9730000.0000000093,3,99,"MidCont","University of Missouri-Columbia",201480120.70185983,5,98,"GreatLakes","Milwaukee School of Engineering",211196287.36852643,4,99]
["OhioValley","Ohio State University",null,"None","UpstateNY","Clarkson University",48.500000010000001,3,100,"PacSW","Northern Arizona University",1086.0000000099999,11,100,"Metro","Rowan University",6,6,93,"Metro","Politechnique",30.000000029999999,5,100,"TexMex","Texas A&M - Kingsville",9986666.6666667461,8,100,"Metro","Politechnique",201492120.7018598,5,100,"OhioValley","University of Pittsburgh ",211385120.7018598,4,100]
["OhioValley","Ohio University",null,"None","TexMex","University of Texas - San Antonio",49.216666676666669,7,101,"SoEast","Florida A&M University-Florida State University",1090.00000015,11,101,"MidPac","San Jose State University",6,6,93,"OhioValley","University of Pittsburgh ",30.000000029999999,4,100,"GreatLakes","University of Illinois at Urbana Champaign",10235000.00000005,3,101,"RockyMtn","US Air Force Academy",201496120.70185983,9,101,"NewEngland","University of Massachusetts Amherst",211437787.36852652,9,101]
["Virginias","Old Dominion University",null,"None","SoEast","Florida Institute of Technology",49.441666706666673,13,102,"TexMex","Autonomous Universidad de Mexico",1093.7000000200001,5,102,"TexMex","Southern Methodist University",6,6,93,"Carolinas","Clemson University",30.00000004,4,102,"GreatLakes","Milwaukee School of Engineering",10384166.666666675,4,102,"PacSW","Northern Arizona University",201524120.70185977,11,102,"UpstateNY","Clarkson University",211618120.70185977,3,102]
["PacNW","Oregon State University",null,"None","TexMex","Texas A&M - Kingsville",49.633333413333332,8,103,"TexMex","Southern Methodist University",1104.2000000600001,6,103,"SoEast","Tennessee Technological University",6,6,93,"OhioValley","Cleveland State University",30.00000004,5,102,"MidPac","Santa Clara University",10420000.000000071,6,103,"SoEast","Florida A&M University-Florida State University",201540120.70185992,11,103,"SoEast","University of Central Florida",211696454.0351932,12,103]
["MidAtlantic","Pennsylvania State University",null,"None","MidAtlantic","Widener University",51.233333403333333,7,104,"PacNW","Montana State University - Bozeman",1114.0000000800001,10,104,"NewEngland","University of Massachusetts Lowell",6,6,93,"SoEast","Florida Institute of Technology",30.00000004,11,102,"Metro","NY Polytechnic",10547500.000000009,4,104,"TexMex","Autonomous Universidad de Mexico",201554920.7018598,5,104,"PacSW","University of California, Irvine",211798454.03519323,7,104]
["Metro","Politechnique",null,"None","TexMex","La Salle - Mexico City",51.483333423333335,9,105,"PacNW","University of Idaho",1124.0000001000001,11,105,"MidAtlantic","University of Pittsburgh at Johnstown",6,6,93,"Virginias","Howard University",30.00000004,4,102,"Metro","Politechnique",10694583.333333362,5,105,"TexMex","Southern Methodist University",201596920.70185983,6,105,"Metro","NY Polytechnic",211835620.70185977,4,105]
["PacNW","Portland State University",null,"None","OhioValley","Cleveland State University",52.05833337333334,6,106,"Metro","Cooper Union",1130.0000000499999,5,106,"PacNW","University of Washington",6,6,93,"MidPac","San Francisco State University",30.00000004,6,102,"PacSW","University of California, Irvine",10718333.333333451,7,106,"PacNW","Montana State University - Bozeman",201636120.70185986,10,106,"MidCont","University of Missouri-Kansas City",211863454.03519315,5,106]
["GreatLakes","Pudue University at West Lafayette",null,"None","MidPac","Santa Clara University",52.10000007,6,107,"MidCont","University of Arkansas",1130.0000000699999,7,107,"Midwest","University of Wisconsin, Platteville",6,6,93,"TexMex","Texas Tech",30.00000004,6,102,"TexMex","Texas A&M University",10841666.666666716,9,107,"PacNW","University of Idaho",201676120.70185986,11,107,"GreatLakes","University of Illinois at Urbana Champaign",212179920.70185983,5,107]
["GreatLakes","Purdue University Fort Wayne",null,"None","NewEngland","Norwich University",52.566666766666664,10,108,"MidAtlantic","University of Delaware",1133.00000002,6,108,"PacNW","Boise State University",7,7,108,"PacSW","University of Arizona",30.00000004,7,102,"DeepSouth","University of Tennessee Martin",11236666.666666675,5,108,"MidCont","University of Arkansas",201700120.70185983,7,108,"Metro","Politechnique",212186704.03519315,5,108]
["UpstateNY","Rensselaer Polytechnic Institute",null,"None","OhioValley","University of Louisville",52.641666746666665,7,109,"NewEngland","Universite Laval",1144.0000000499999,8,109,"DeepSouth","Christian Brothers University",9999,7,139,"Carolinas","North Carolina State University",30.000000050000001,5,109,"PacSW","University of Nevada, Las Vegas",11315000.00000002,8,109,"MidAtlantic","University of Delaware",201712120.7018598,6,109,"TexMex","Texas A&M - Kingsville",212257187.36852652,8,109]
["UpstateNY","Rochester Institute of Technology",null,"None","Virginias","George Mason",52.825000060000001,3,110,"PacSW","Ryerson University",1150.00000009,12,110,"OhioValley","Geneva College",7,7,108,"Virginias","Old Dominion University",30.000000050000001,5,109,"Carolinas","University of South Carolina",11347500.000000009,4,110,"NewEngland","Universite Laval",201756120.70185983,8,110,"PacSW","University of Nevada, Las Vegas",212363120.7018598,8,110]
["Metro","Rowan University",null,"None","PacSW","University of California, Irvine",53.291666786666667,7,111,"UpstateNY","Clarkson University",1177.0000000099999,3,111,"Virginias","George Washington",7,7,108,"TexMex","Texas A&M University",30.000000050000001,7,109,"GreatLakes","Illinois Institute of Technology",11511666.666666726,5,111,"PacSW","Ryerson University",201780120.70185986,12,111,"GreatLakes","Illinois Institute of Technology",212742987.36852649,6,111]
["PacSW","Ryerson University",null,"None","PacSW","University of California, Los Angeles",54.200000070000002,8,112,"TexMex","University of Texas - Arlington",1179.7000001000001,7,112,"NewEngland","Merrimack College",7,7,108,"NewEngland","Universite Laval",30.000000050000001,7,109,"OhioValley","Ohio State University",11965000.000000089,6,112,"UpstateNY","Clarkson University",201888120.70185977,3,112,"MidPac","Santa Clara University",212754120.70185983,6,112]
["MidPac","San Francisco State University",null,"None","TexMex","Texas A&M University",54.208333383333326,10,113,"GreatLakes","University of Illinois at Urbana Champaign",1191.20000005,6,113,"RockyMtn","New Mexico Tech",7,7,108,"OhioValley","University of Cincinnati",30.000000050000001,6,109,"MidAtlantic","University of Maryland",12355000.00000005,7,113,"TexMex","University of Texas - Arlington",201898920.70185986,7,113,"TexMex","Texas A&M University",212906187.36852649,9,113]
["MidPac","San Jose State University",null,"None","RockyMtn","Colorado State",54.583333423333329,8,114,"Carolinas","North Carolina State University",1202.0000000499999,4,114,"MidPac","Santa Clara University",7,7,108,"GreatLakes","University of Illinois at Urbana Champaign",30.000000050000001,5,109,"SoEast","Florida Institute of Technology",12390416.666666707,13,114,"GreatLakes","University of Illinois at Urbana Champaign",201944920.70185983,6,114,"OhioValley","University of Cincinnati",212914120.70185983,5,114]
["MidPac","Santa Clara University",null,"None","GreatLakes","Trine University",54.97500007,5,115,"MidAtlantic","University of Maryland",1206.6000000499998,7,115,"GreatLakes","Trine University",7,7,108,"MidAtlantic","University of Maryland",30.000000050000001,7,109,"MidAtlantic","Widener University",12838333.333333405,8,115,"Carolinas","North Carolina State University",201988120.70185983,4,115,"Carolinas","University of South Carolina",213543620.70185977,5,115]
["PacNW","Seattle University",null,"None","DeepSouth","University of Tennessee Martin",55.883333343333334,5,116,"TexMex","University of Texas - San Antonio",1211.90000001,8,116,"MidCont","University of Arkansas",7,7,108,"DeepSouth","University of Memphis",30.000000050000001,6,109,"TexMex","La Salle - Mexico City",12990833.333333423,10,116,"MidAtlantic","University of Maryland",202006520.70185983,7,116,"DeepSouth","University of Tennessee Martin",213648787.36852643,5,116]
["RockyMtn","South Dakota School of Mines and Technology",null,"None","MidCont","Missouri University of Science and Technology",56.025000059999996,5,117,"TexMex","Texas A&M University",1221.1000000499998,9,117,"PacSW","University of California, Los Angeles",7,7,108,"MidCont","University of Missouri-Columbia",30.000000050000001,5,109,"OhioValley","Cleveland State University",13074583.333333373,7,117,"TexMex","University of Texas - San Antonio",202027720.70185977,8,117,"MidAtlantic","University of Maryland",214361520.70185983,7,117]
["MidCont","Southern Illinois University Edwardsville",null,"None","MidPac","San Francisco State University",56.100000040000005,7,118,"RockyMtn","New Mexico Tech",1221.20000007,9,118,"TexMex","University of Houston",7,7,108,"RockyMtn","US Air Force Academy",30.000000050000001,9,109,"OhioValley","University of Louisville",13220416.666666746,8,118,"TexMex","Texas A&M University",202064520.70185983,9,118,"TexMex","Southern Methodist University",214953587.36852649,10,118]
["TexMex","Southern Methodist University",null,"None","Virginias","George Washington",56.341666736666667,4,119,"Virginias","Old Dominion University",1225.0000000499999,5,119,"DeepSouth","University of Louisiana Lafayette",9999,7,139,"PacSW","California State University, Northridge",30.000000060000001,8,119,"Virginias","George Mason",13266250.00000006,3,119,"RockyMtn","New Mexico Tech",202064920.70185983,10,119,"SoEast","Florida Institute of Technology",214990537.36852646,13,119]
["SoEast","Southern Polytechnic State University",null,"None","PacSW","University of Nevada, Las Vegas",56.575000020000004,9,120,"RockyMtn","Colorado State",1248.40000009,10,120,"DeepSouth","University of Mississippi ",9999,7,139,"Virginias","George Mason",30.000000060000001,6,119,"TexMex","Southern Methodist University",13356666.666666726,11,120,"Virginias","Old Dominion University",202080120.70185983,5,120,"OhioValley","Cleveland State University",215278704.03519315,6,120]
["UpstateNY","Suny College of Technology at Canton",null,"None","DeepSouth","University of Memphis",56.858333383333331,6,121,"Carolinas","University of South Carolina",1254.0000000099999,5,121,"Midwest","University of North Dakota",7,7,108,"GreatLakes","Illinois Institute of Technology",30.000000060000001,6,119,"GreatLakes","Trine University",13803750.000000071,6,121,"RockyMtn","Colorado State",202173720.70185986,11,121,"OhioValley","Ohio State University",215365120.70185986,7,121]
["SoEast","Tennessee Technological University",null,"None","SoEast","Florida Gulf Coast University",56.916666786666674,14,122,"OhioValley","Cleveland State University",1256.00000004,4,122,"SoEast","University of North Florida",7,7,108,"MidCont","Missouri University of Science and Technology",30.000000060000001,6,119,"MidCont","Missouri University of Science and Technology",14066250.00000006,6,122,"Carolinas","University of South Carolina",202196120.70185977,5,122,"MidCont","Missouri University of Science and Technology",215546370.70185983,6,122]
["TexMex","Texas A&M - Kingsville",null,"None","MidCont","University of Nebraska-Lincoln",57.066666756666663,6,123,"GreatLakes","Purdue University Fort Wayne",1267.2000000800001,7,123,"MidAtlantic","Widener University",7,7,108,"OhioValley","Ohio University",30.000000060000001,7,119,"MidPac","San Francisco State University",14085000.000000039,7,123,"OhioValley","Cleveland State University",202204120.7018598,4,123,"TexMex","La Salle - Mexico City",215551754.0351932,11,123]
["TexMex","Texas A&M University",null,"None","GreatLakes","Illinois Institute of Technology",57.408333393333329,6,124,"TexMex","Texas A&M - Kingsville",1272.60000008,10,124,"MidAtlantic","Bucknell University",8,8,121,"Metro","Rowan University",30.000000060000001,6,119,"Virginias","George Washington",14145416.666666739,4,124,"GreatLakes","Purdue University Fort Wayne",202248920.70185986,7,124,"Virginias","George Mason",216046370.70185983,4,124]
["TexMex","Texas Tech",null,"None","SoEast","Auburn University",57.791666766666673,15,125,"NewEngland","University of Massachusetts Amherst",1284.0000000800001,9,125,"PacNW","Montana State University - Bozeman",8,8,121,"TexMex","Southern Methodist University",30.000000060000001,8,119,"MidCont","University of Nebraska-Lincoln",14266666.666666755,7,125,"TexMex","Texas A&M - Kingsville",202270520.70185986,10,125,"MidAtlantic","Widener University",216210454.03519318,8,125]
["SoEast","Tongji University",null,"None","UpstateNY","Hudson Valley Community College",58.250000010000001,4,126,"MidPac","Santa Clara University",1288.5000000699999,6,126,"GreatLakes","Purdue University Fort Wayne",8,8,121,"Virginias","George Washington",30.000000069999999,7,126,"DeepSouth","University of Memphis",14274583.333333384,6,126,"NewEngland","University of Massachusetts Amherst",202316120.70185986,9,126,"RockyMtn","US Air Force Academy",216305287.36852649,10,126]
["GreatLakes","Trine University",null,"None","SoEast","University of South Alabama",58.633333463333329,16,127,"NorthCentral","Western Michigan University",1304.50000002,5,127,"TexMex","Texas A&M - Kingsville",8,8,121,"NewEngland","Merrimack College",30.000000069999999,8,126,"SoEast","Florida Gulf Coast University",14289166.666666787,14,127,"MidPac","Santa Clara University",202334120.70185983,6,127,"PacSW","University of Arizona",216404704.03519315,10,127]
["NewEngland","Tufts University",null,"None","TexMex","University of Texas - Arlington",58.900000100000007,11,128,"DeepSouth","University of Tennessee Martin",1308.0000000099999,5,128,"SoEast","University of Central Florida",8,8,121,"RockyMtn","New Mexico Tech",30.000000069999999,10,126,"SoEast","Auburn University",14507916.666666768,15,128,"NorthCentral","Western Michigan University",202398120.7018598,5,128,"PacSW","Northern Arizona University",216446620.70185977,11,128]
["RockyMtn","UC - Denver",null,"None","RockyMtn","US Air Force Academy",59.116666716666664,9,129,"SoEast","University of Central Florida",1332.0000000800001,12,129,"PacSW","University of Hawaii at Manoa",8,8,121,"MidPac","Santa Clara University",30.000000069999999,7,126,"UpstateNY","Hudson Valley Community College",14622500.000000009,4,129,"DeepSouth","University of Tennessee Martin",202412120.70185977,5,129,"TexMex","University of Texas - Arlington",216683920.70185986,12,129]
["UpstateNY","United States Military Academy, West Point",null,"None","PacSW","Northern Arizona University",59.450000010000004,10,{"$f":"RANK(G137,G$8:G$152,1)","v":130},"OhioValley","University of Pittsburgh ",1335.0000000299999,5,{"$f":"RANK(L137,L$8:L$152,1)","v":130},"MidCont","University of Kansas",8,8,{"$f":"RANK(Q137,Q$8:Q$152,1)","v":121},"GreatLakes","Trine University",30.000000069999999,7,{"$f":"RANK(V137,V$8:V$152,1)","v":126},"SoEast","University of South Alabama",14688333.333333464,16,{"$f":"RANK(AA137,AA$8:AA$152,1)","v":130},"SoEast","University of Central Florida",202508120.70185986,12,{"$f":"RANK(AF137,AF$8:AF$152,1)","v":130},"MidPac","San Francisco State University",216827120.7018598,7,{"$f":"RANK(AK137,AK$8:AK$152,1)","v":130}]
["NewEngland","Universite Laval",null,"None","OhioValley","Ohio State University",59.525000089999999,8,131,"DeepSouth","University of Memphis",1344.0000000499999,6,131,"OhioValley","University of Louisville",8,8,121,"MidCont","University of Arkansas",30.000000069999999,7,126,"TexMex","University of Texas - Arlington",14785000.000000101,12,131,"OhioValley","University of Pittsburgh ",202520120.7018598,5,131,"DeepSouth","University of Memphis",216830704.03519318,6,131]
["UpstateNY","University at Buffalo",null,"None","UpstateNY","Rochester Institute of Technology",60.183333343333338,5,132,"TexMex","University of Houston",1344.8000000699999,11,132,"NewEngland","University of Massachusetts Amherst",8,8,121,"PacSW","University of California, Los Angeles",30.000000069999999,9,126,"RockyMtn","US Air Force Academy",14809166.666666716,9,132,"DeepSouth","University of Memphis",202556120.70185983,6,132,"OhioValley","University of Louisville",217656537.36852652,8,132]
["OhioValley","University of Akron",null,"None","PacSW","University of Arizona",61.458333373333339,11,133,"TexMex","La Salle - Mexico City",1345.20000009,12,133,"RockyMtn","University of New Mexico",8,8,121,"TexMex","University of Houston",30.000000069999999,9,126,"PacSW","Northern Arizona University",14922500.000000009,10,133,"TexMex","University of Houston",202559320.70185983,11,133,"SoEast","Auburn University",217708037.36852652,14,133]
["SoEast","University of Alabama",null,"None","MidAtlantic","University of Maryland",61.475000049999998,8,134,"SoEast","Florida Institute of Technology",1355.00000004,13,134,"GreatLakes","Bradley University",9999,9,139,"SoEast","University of North Florida",30.000000069999999,12,126,"UpstateNY","Rochester Institute of Technology",15075833.333333343,5,134,"TexMex","La Salle - Mexico City",202560920.70185986,12,134,"Virginias","George Washington",217849537.36852649,5,134]
["PacNW","University of Alaska Anchorage",null,"None","Metro","Rowan University",61.533333393333329,6,135,"SoEast","University of North Florida",1361.0000000699999,14,135,"RockyMtn","Colorado State",9,9,131,"MidAtlantic","Widener University",30.000000069999999,8,126,"PacSW","University of Arizona",15424583.333333373,11,135,"SoEast","Florida Institute of Technology",202600120.7018598,13,135,"Virginias","Howard University",217868870.7018598,6,135]
["PacNW","University of Alaska Fairbanks",null,"None","MidCont","University of Missouri-Columbia",63.091666716666666,7,136,"MidPac","San Francisco State University",1390.50000004,7,136,"TexMex","La Salle - Mexico City",9,9,131,"PacNW","Montana State University - Bozeman",30.00000008,9,136,"Metro","Rowan University",15443333.333333392,6,136,"SoEast","University of North Florida",202624120.70185983,14,136,"UpstateNY","Rochester Institute of Technology",218035954.03519312,4,136]
["PacSW","University of Arizona",null,"None","UpstateNY","Rensselaer Polytechnic Institute",64.841666676666662,6,137,"Virginias","George Mason",1400.00000006,6,137,"GreatLakes","Northwestern University",9999,9,139,"GreatLakes","Purdue University Fort Wayne",30.00000008,8,136,"NewEngland","Norwich University",15770000.000000099,10,137,"MidPac","San Francisco State University",202742120.7018598,7,137,"MidCont","University of Nebraska-Lincoln",218146787.36852652,7,137]
["MidCont","University of Arkansas",null,"None","TexMex","Southern Methodist University",66.783333393333336,12,138,"UpstateNY","Rochester Institute of Technology",1445.0000000099999,4,138,"OhioValley","Ohio State University",9,9,131,"TexMex","Texas A&M - Kingsville",30.00000008,10,136,"UpstateNY","Rensselaer Polytechnic Institute",16210416.666666677,6,138,"Virginias","George Mason",202780120.70185983,6,138,"SoEast","Florida Gulf Coast University",218641287.36852655,15,138]
["PacNW","University of British Columbia",null,"None","Virginias","Howard University",67.875000040000003,5,139,"PacNW","Seattle University",1449.00000009,12,139,"PacSW","Ryerson University",9,9,131,"SoEast","University of Central Florida",30.00000008,13,136,"Virginias","Howard University",17088750.000000041,5,139,"UpstateNY","Rochester Institute of Technology",202960120.70185977,4,139,"GreatLakes","Trine University",218830270.70185983,7,139]
["MidPac","University of California, Berkeley",null,"None","Virginias","Virginia Military Institute",182.00000001000001,6,140,"MidCont","University of Missouri-Kansas City",1450.00000002,8,140,"PacNW","Seattle University",9,9,131,"MidCont","University of Kansas",30.00000008,8,136,"RockyMtn","New Mexico State University",36580000.000000097,10,140,"PacNW","Seattle University",202976120.70185986,12,140,"UpstateNY","Hudson Valley Community College",218990620.70185977,5,140]
["MidPac","University of California, Davis",null,"None","RockyMtn","New Mexico State University",182.75000009999999,10,141,"NewEngland","University of Maine",1454.00000011,10,141,"NewEngland","University of Connecticut",9,9,131,"OhioValley","University of Louisville",30.00000008,8,136,"Carolinas","Citadel",36710000.000000022,5,141,"MidCont","University of Missouri-Kansas City",202980120.7018598,8,141,"UpstateNY","Rensselaer Polytechnic Institute",219370537.36852643,6,141]
["PacSW","University of California, Irvine",null,"None","Carolinas","Citadel",183.25000001999999,5,142,"UpstateNY","United States Military Academy, West Point",1487.0000000099999,5,142,"GreatLakes","University of Evansville",9999,9,139,"NewEngland","University of Massachusetts Amherst",30.00000008,9,136,"PacNW","Boise State University",37010000.000000067,10,142,"NewEngland","University of Maine",202996120.70185989,10,142,"SoEast","University of South Alabama",219464454.03519323,16,142]
["PacSW","University of California, Los Angeles",null,"None","GreatLakes","University of Illinois at Chicago",183.25000003,7,143,"UpstateNY","Rensselaer Polytechnic Institute",1495.0000000099999,6,143,"MidCont","University of Nebraska-Lincoln",9,9,131,"RockyMtn","Colorado State",30.00000009,11,143,"PacNW","Seattle University",42360000.000000089,11,143,"UpstateNY","United States Military Academy, West Point",203128120.70185977,5,143,"NewEngland","Norwich University",220910120.70185986,10,143]
["SoEast","University of Central Florida",null,"None","PacNW","Boise State University",184.75000007,10,144,"SoEast","Auburn University",1505.0000001000001,15,144,"GreatLakes","University of Notre Dame",9999,9,139,"TexMex","La Salle - Mexico City",30.00000009,11,143,"PacSW","California State University, Fullerton",42360000.000000097,12,144,"UpstateNY","Rensselaer Polytechnic Institute",203160120.70185977,6,144,"Metro","Rowan University",230923454.03519318,6,144]
["OhioValley","University of Cincinnati",null,"None","PacNW","Seattle University",211.50000008999999,11,145,"OhioValley","University of Cincinnati",1536.0000000499999,6,145,"SoEast","University of South Florida",9,9,131,"OhioValley","Ohio State University",30.00000009,9,143,"Midwest","North Dakota State University",42510000.000000007,7,145,"SoEast","Auburn University",203200120.70185986,15,145,"PacSW","California State University, Fullerton",243640120.70185986,12,145]
["NewEngland","University of Connecticut",null,"None","PacSW","California State University, Fullerton",211.50000009999999,12,null,"MidAtlantic","Widener University",1548.0000000699999,8,null,"SoEast","Auburn University",10,10,null,"PacSW","Ryerson University",30.00000009,10,null,"OhioValley","Ohio University",42760000.00000006,9,null,"OhioValley","University of Cincinnati",203324120.70185983,6,null,"PacNW","Seattle University",245336120.70185986,11]
["MidAtlantic","University of Delaware",null,"None","MidCont","Southern Illinois University Edwardsville",211.75000001000001,8,null,"OhioValley","Ohio State University",1555.00000009,7,null,"PacSW","California State University, Fullerton",10,10,null,"PacNW","Seattle University",30.00000009,10,null,"GreatLakes","Purdue University Fort Wayne",43385000.000000082,7,null,"MidAtlantic","Widener University",203372120.70185983,8,null,"GreatLakes","Purdue University Fort Wayne",245633920.70185986,8]
["SoEast","University of Florida",null,"None","MidCont","University of Arkansas",211.75000007,9,null,"OhioValley","Ohio University",1574.00000006,8,null,"RockyMtn","New Mexico State University",10,10,null,"MidCont","University of Nebraska-Lincoln",30.00000009,9,null,"UpstateNY","United States Military Academy, West Point",43600000.000000007,7,null,"OhioValley","Ohio State University",203400120.70185986,7,null,"OhioValley","Ohio University",246236120.70185983,9]
["PacSW","University of Hawaii at Manoa",null,"None","Midwest","North Dakota State University",212.25000001000001,7,null,"Virginias","George Washington",1631.0000000699999,7,null,"NewEngland","Norwich University",10,10,null,"SoEast","Auburn University",30.000000100000001,14,null,"Virginias","Virginia Military Institute",45560000.000000007,6,null,"OhioValley","Ohio University",203476120.70185983,8,null,"UpstateNY","United States Military Academy, West Point",246728120.70185977,7]
["TexMex","University of Houston",null,"None","SoEast","University of Tennessee at Chattanooga",212.50000018,17,null,"MidCont","University of Nebraska-Lincoln",1675.00000009,9,null,"PacNW","University of Idaho",10,10,null,"PacSW","California State University, Fullerton",30.000000100000001,11,null,"GreatLakes","University of Illinois at Chicago",45842500.00000003,8,null,"Virginias","George Washington",203704120.70185983,7,null,"Midwest","North Dakota State University",247595520.70185977,7]
["PacNW","University of Idaho",null,"None","NorthCentral","Western Michigan University",213.00000001999999,5,null,"SoEast","Florida Gulf Coast University",1793.0000001200001,16,null,"TexMex","University of Texas - Arlington",10,10,null,"NewEngland","Norwich University",30.000000100000001,10,null,"MidCont","University of Arkansas",52937500.000000067,8,null,"MidCont","University of Nebraska-Lincoln",203880120.70185986,9,null,"MidCont","Southern Illinois University Edwardsville",254377620.70185977,8]
["GreatLakes","University of Illinois at Chicago",null,"None","OhioValley","Ohio University",213.50000005999999,9,null,"UpstateNY","Hudson Valley Community College",1797.0000000099999,7,null,"TexMex","La Salle - Cuernavaca",11,11,null,"PacNW","University of Idaho",30.000000100000001,11,null,"MidCont","Southern Illinois University Edwardsville",52997500.000000007,9,null,"SoEast","Florida Gulf Coast University",204352120.70185989,16,null,"MidCont","University of Arkansas",254637620.70185983,9]
["GreatLakes","University of Illinois at Urbana Champaign",null,"None","RockyMtn","New Mexico Tech",213.75000007,11,null,"RockyMtn","New Mexico State University",1804.4000001000002,11,null,"RockyMtn","UC - Denver",11,11,null,"TexMex","University of Texas - Arlington",30.000000100000001,12,null,"SoEast","University of Tennessee at Chattanooga",53155000.000000179,17,null,"UpstateNY","Hudson Valley Community College",204368120.70185977,7,null,"RockyMtn","New Mexico Tech",255562420.70185983,11]
["MidCont","University of Kansas",null,"None","NewEngland","University of Maine",213.75000011,11,null,"OhioValley","University of Louisville",1814.0000000800001,9,null,"PacNW","University of Alaska Anchorage",11,11,null,"PacNW","University of Alaska Anchorage",30.000000109999998,12,null,"RockyMtn","New Mexico Tech",53497500.000000067,11,null,"OhioValley","University of Louisville",204436120.70185986,9,null,"NewEngland","University of Maine",256493620.70185989,11]
["OhioValley","University of Louisville",null,"None","Virginias","Old Dominion University",214.50000005000001,7,null,"SoEast","University of South Alabama",1899.00000013,17,null,"NewEngland","University of Maine",11,11,null,"NewEngland","University of Maine",30.000000109999998,11,null,"NewEngland","University of Maine",53497500.000000112,11,null,"SoEast","University of South Alabama",204776120.70185989,17,null,"SoEast","University of North Florida",256559120.70185983,17]
["NewEngland","University of Maine",null,"None","PacNW","University of Idaho",215.00000009999999,12,null,"GreatLakes","Trine University",1961.6000000699999,8,null,"SoEast","University of Puerto Rico, Mayaguez",11,11,null,"SoEast","Florida Gulf Coast University",30.000000119999999,15,null,"SoEast","University of North Florida",53935000.000000067,18,null,"GreatLakes","Trine University",205026520.70185983,8,null,"SoEast","University of Tennessee at Chattanooga",259547120.70185995,18]
["MidAtlantic","University of Maryland",null,"None","SoEast","University of North Florida",215.50000007,18,null,"Midwest","North Dakota State University",1976.3500000099998,7,null,"SoEast","Florida Gulf Coast University",12,12,null,"PacSW","University of California, Irvine",30.000000119999999,13,null,"NorthCentral","Western Michigan University",63960000.000000022,5,null,"Midwest","North Dakota State University",205085520.70185977,7,null,"PacNW","University of Idaho",266236120.70185986,12]
["NewEngland","University of Massachusetts Amherst",null,"None","GreatLakes","Purdue University Fort Wayne",216.62500008000001,8,null,"NewEngland","Norwich University",1990.0000001000001,11,null,"PacNW","Portland State University",12,12,null,"SoEast","University of South Alabama",30.00000013,16,null,"Virginias","Old Dominion University",64410000.000000052,7,null,"NewEngland","Norwich University",205140120.70185986,11,null,"NorthCentral","Western Michigan University",266358120.7018598,5]
["NewEngland","University of Massachusetts Lowell",null,"None","UpstateNY","United States Military Academy, West Point",218.00000001000001,7,null,"SoEast","University of Tennessee at Chattanooga",2303.0000001799999,18,null,"PacSW","University of California, Irvine",12,12,null,"SoEast","Florida A&M University-Florida State University",30.000000150000002,17,null,"PacNW","University of Idaho",64560000.000000097,12,null,"SoEast","University of Tennessee at Chattanooga",206392120.70185995,18,null,"Virginias","Old Dominion University",266490120.70185983,7]
["DeepSouth","University of Memphis",null,"None","PacSW","Ryerson University",219.00000008999999,13,null,"Metro","Rowan University",4575.0000000600003,6,null,"TexMex","University of Texas",12,12,null,"SoEast","University of Tennessee at Chattanooga",30.000000180000001,18,null,"PacSW","Ryerson University",65760000.000000089,13,null,"Metro","Rowan University",215480120.70185983,6,null,"PacSW","Ryerson University",267540120.70185986,13]
["SoEast","University of Miami",null,"None","GreatLakes","Bradley University",9999.9900999900001,9,null,"GreatLakes","Bradley University",9999.0000999900003,9,null,"PacSW","California Polytechnic State University, Pomona",13,13,null,"GreatLakes","Bradley University",9999.9900999900001,9,null,"GreatLakes","Bradley University",999999999.00010002,9,null,"GreatLakes","Bradley University",999999999.00010002,9,null,"GreatLakes","Bradley University",999999999.00010002,9]
["NorthCentral","University of Michigan",null,"None","DeepSouth","Christian Brothers University",9999.9900999900001,7,null,"DeepSouth","Christian Brothers University",9999.0000999900003,7,null,"SoEast","University of South Alabama",13,13,null,"DeepSouth","Christian Brothers University",9999.9900999900001,7,null,"DeepSouth","Christian Brothers University",999999999.00010002,7,null,"DeepSouth","Christian Brothers University",999999999.00010002,7,null,"DeepSouth","Christian Brothers University",999999999.00010002,7]
["Midwest","University of Minnesota, Twin Cities",null,"None","GreatLakes","Northwestern University",9999.9900999900001,9,null,"GreatLakes","Northwestern University",9999.0000999900003,9,null,"SoEast","University of Tennessee at Knoxville",14,14,null,"GreatLakes","Northwestern University",9999.9900999900001,9,null,"GreatLakes","Northwestern University",999999999.00010002,9,null,"GreatLakes","Northwestern University",999999999.00010002,9,null,"GreatLakes","Northwestern University",999999999.00010002,9]
["MidCont","University of Missouri-Columbia",null,"None","GreatLakes","University of Evansville",9999.9900999900001,9,null,"GreatLakes","University of Evansville",9999.0000999900003,9,null,"SoEast","Florida A&M University-Florida State University",15,15,null,"GreatLakes","University of Evansville",9999.9900999900001,9,null,"GreatLakes","University of Evansville",999999999.00010002,9,null,"GreatLakes","University of Evansville",999999999.00010002,9,null,"GreatLakes","University of Evansville",999999999.00010002,9]
["MidCont","University of Missouri-Kansas City",null,"None","DeepSouth","University of Louisiana Lafayette",9999.9900999900001,7,null,"DeepSouth","University of Louisiana Lafayette",9999.0000999900003,7,null,"SoEast","University of Miami",16,16,null,"DeepSouth","University of Louisiana Lafayette",9999.9900999900001,7,null,"DeepSouth","University of Louisiana Lafayette",999999999.00010002,7,null,"DeepSouth","University of Louisiana Lafayette",999999999.00010002,7,null,"DeepSouth","University of Louisiana Lafayette",999999999.00010002,7]
["MidCont","University of Nebraska-Lincoln",null,"None","DeepSouth","University of Mississippi ",9999.9900999900001,7,null,"DeepSouth","University of Mississippi ",9999.0000999900003,7,null,"SoEast","Tongji University",17,17,null,"DeepSouth","University of Mississippi ",9999.9900999900001,7,null,"DeepSouth","University of Mississippi ",999999999.00010002,7,null,"DeepSouth","University of Mississippi ",999999999.00010002,7,null,"DeepSouth","University of Mississippi ",999999999.00010002,7]
["MidCont","University of Nebraska-Lincoln at Omaha",null,"None","GreatLakes","University of Notre Dame",9999.9900999900001,9,null,"GreatLakes","University of Notre Dame",9999.0000999900003,9,null,"SoEast","University of Tennessee at Chattanooga",18,18,null,"GreatLakes","University of Notre Dame",9999.9900999900001,9,null,"GreatLakes","University of Notre Dame",999999999.00010002,9,null,"GreatLakes","University of Notre Dame",999999999.00010002,9,null,"GreatLakes","University of Notre Dame",999999999.00010002,9]
["PacSW","University of Nevada, Las Vegas",null,"None","PacSW","Arizona State University","---","---",null,"PacSW","Arizona State University","---","---",null,"PacSW","Arizona State University","---","---",null,"PacSW","Arizona State University","---","---",null,"PacSW","Arizona State University","---","---",null,"PacSW","Arizona State University","---","---",null,"PacSW","Arizona State University","---","---"]
["NewEngland","University of New Hampshire",null,"None","RockyMtn","Brigham Young University","---","---",null,"RockyMtn","Brigham Young University","---","---",null,"RockyMtn","Brigham Young University","---","---",null,"RockyMtn","Brigham Young University","---","---",null,"RockyMtn","Brigham Young University","---","---",null,"RockyMtn","Brigham Young University","---","---",null,"RockyMtn","Brigham Young University","---","---"]
["RockyMtn","University of New Mexico",null,"None","PacSW","California Baptist University","---","---",null,"PacSW","California Baptist University","---","---",null,"PacSW","California Baptist University","---","---",null,"PacSW","California Baptist University","---","---",null,"PacSW","California Baptist University","---","---",null,"PacSW","California Baptist University","---","---",null,"PacSW","California Baptist University","---","---"]
["Midwest","University of North Dakota",null,"None","PacSW","California State University, Los Angeles","---","---",null,"PacSW","California State University, Los Angeles","---","---",null,"PacSW","California State University, Los Angeles","---","---",null,"PacSW","California State University, Los Angeles","---","---",null,"PacSW","California State University, Los Angeles","---","---",null,"PacSW","California State University, Los Angeles","---","---",null,"PacSW","California State University, Los Angeles","---","---"]
["SoEast","University of North Florida",null,"None","OhioValley","Carnegie Mellon University","---","---",null,"OhioValley","Carnegie Mellon University","---","---",null,"OhioValley","Carnegie Mellon University","---","---",null,"OhioValley","Carnegie Mellon University","---","---",null,"OhioValley","Carnegie Mellon University","---","---",null,"OhioValley","Carnegie Mellon University","---","---",null,"OhioValley","Carnegie Mellon University","---","---"]
["OhioValley","University of Pittsburgh ",null,"None","OhioValley","Cincinnati State Technical and Coummunity College","---","---",null,"OhioValley","Cincinnati State Technical and Coummunity College","---","---",null,"OhioValley","Cincinnati State Technical and Coummunity College","---","---",null,"OhioValley","Cincinnati State Technical and Coummunity College","---","---",null,"OhioValley","Cincinnati State Technical and Coummunity College","---","---",null,"OhioValley","Cincinnati State Technical and Coummunity College","---","---",null,"OhioValley","Cincinnati State Technical and Coummunity College","---","---"]
["MidAtlantic","University of Pittsburgh at Johnstown",null,"None","Metro","Columbia University","---","---",null,"Metro","Columbia University","---","---",null,"Metro","Columbia University","---","---",null,"Metro","Columbia University","---","---",null,"Metro","Columbia University","---","---",null,"Metro","Columbia University","---","---",null,"Metro","Columbia University","---","---"]
["SoEast","University of Puerto Rico, Mayaguez",null,"None","UpstateNY","Cornell University","---","---",null,"UpstateNY","Cornell University","---","---",null,"UpstateNY","Cornell University","---","---",null,"UpstateNY","Cornell University","---","---",null,"UpstateNY","Cornell University","---","---",null,"UpstateNY","Cornell University","---","---",null,"UpstateNY","Cornell University","---","---"]
["SoEast","University of South Alabama",null,"None","UpstateNY","École de Technologie Supérieure","---","---",null,"UpstateNY","École de Technologie Supérieure","---","---",null,"UpstateNY","École de Technologie Supérieure","---","---",null,"UpstateNY","École de Technologie Supérieure","---","---",null,"UpstateNY","École de Technologie Supérieure","---","---",null,"UpstateNY","École de Technologie Supérieure","---","---",null,"UpstateNY","École de Technologie Supérieure","---","---"]
["Carolinas","University of South Carolina",null,"None","Metro","Fairleigh Dickinson University","---","---",null,"Metro","Fairleigh Dickinson University","---","---",null,"Metro","Fairleigh Dickinson University","---","---",null,"Metro","Fairleigh Dickinson University","---","---",null,"Metro","Fairleigh Dickinson University","---","---",null,"Metro","Fairleigh Dickinson University","---","---",null,"Metro","Fairleigh Dickinson University","---","---"]
["SoEast","University of South Florida",null,"None","SoEast","Florida International University","---","---",null,"SoEast","Florida International University","---","---",null,"SoEast","Florida International University","---","---",null,"SoEast","Florida International University","---","---",null,"SoEast","Florida International University","---","---",null,"SoEast","Florida International University","---","---",null,"SoEast","Florida International University","---","---"]
["PacSW","University of Southern California",null,"None","MidAtlantic","Lehigh University","---","---",null,"MidAtlantic","Lehigh University","---","---",null,"MidAtlantic","Lehigh University","---","---",null,"MidAtlantic","Lehigh University","---","---",null,"MidAtlantic","Lehigh University","---","---",null,"MidAtlantic","Lehigh University","---","---",null,"MidAtlantic","Lehigh University","---","---"]
["SoEast","University of Tennessee at Chattanooga",null,"None","PacSW","Loyola Marymount University","---","---",null,"PacSW","Loyola Marymount University","---","---",null,"PacSW","Loyola Marymount University","---","---",null,"PacSW","Loyola Marymount University","---","---",null,"PacSW","Loyola Marymount University","---","---",null,"PacSW","Loyola Marymount University","---","---",null,"PacSW","Loyola Marymount University","---","---"]
["SoEast","University of Tennessee at Knoxville",null,"None","TexMex","Monterrey","---","---",null,"TexMex","Monterrey","---","---",null,"TexMex","Monterrey","---","---",null,"TexMex","Monterrey","---","---",null,"TexMex","Monterrey","---","---",null,"TexMex","Monterrey","---","---",null,"TexMex","Monterrey","---","---"]
["DeepSouth","University of Tennessee Martin",null,"None","MidAtlantic","Morgan State University","---","---",null,"MidAtlantic","Morgan State University","---","---",null,"MidAtlantic","Morgan State University","---","---",null,"MidAtlantic","Morgan State University","---","---",null,"MidAtlantic","Morgan State University","---","---",null,"MidAtlantic","Morgan State University","---","---",null,"MidAtlantic","Morgan State University","---","---"]
["TexMex","University of Texas",null,"None","Carolinas","North Carolina A & T University","---","---",null,"Carolinas","North Carolina A & T University","---","---",null,"Carolinas","North Carolina A & T University","---","---",null,"Carolinas","North Carolina A & T University","---","---",null,"Carolinas","North Carolina A & T University","---","---",null,"Carolinas","North Carolina A & T University","---","---",null,"Carolinas","North Carolina A & T University","---","---"]
["TexMex","University of Texas - Arlington",null,"None","NewEngland","Northeastern University","---","---",null,"NewEngland","Northeastern University","---","---",null,"NewEngland","Northeastern University","---","---",null,"NewEngland","Northeastern University","---","---",null,"NewEngland","Northeastern University","---","---",null,"NewEngland","Northeastern University","---","---",null,"NewEngland","Northeastern University","---","---"]
["TexMex","University of Texas - El Paso",null,"None","Metro","NYC College of Technology","---","---",null,"Metro","NYC College of Technology","---","---",null,"Metro","NYC College of Technology","---","---",null,"Metro","NYC College of Technology","---","---",null,"Metro","NYC College of Technology","---","---",null,"Metro","NYC College of Technology","---","---",null,"Metro","NYC College of Technology","---","---"]
["TexMex","University of Texas - San Antonio",null,"None","MidCont","Oklahoma State University","---","---",null,"MidCont","Oklahoma State University","---","---",null,"MidCont","Oklahoma State University","---","---",null,"MidCont","Oklahoma State University","---","---",null,"MidCont","Oklahoma State University","---","---",null,"MidCont","Oklahoma State University","---","---",null,"MidCont","Oklahoma State University","---","---"]
["RockyMtn","University of Utah",null,"None","PacNW","Oregon Institute of Technology","---","---",null,"PacNW","Oregon Institute of Technology","---","---",null,"PacNW","Oregon Institute of Technology","---","---",null,"PacNW","Oregon Institute of Technology","---","---",null,"PacNW","Oregon Institute of Technology","---","---",null,"PacNW","Oregon Institute of Technology","---","---",null,"PacNW","Oregon Institute of Technology","---","---"]
["PacNW","University of Washington",null,"None","Metro","Rutgers","---","---",null,"Metro","Rutgers","---","---",null,"Metro","Rutgers","---","---",null,"Metro","Rutgers","---","---",null,"Metro","Rutgers","---","---",null,"Metro","Rutgers","---","---",null,"Metro","Rutgers","---","---"]
["GreatLakes","University of Wisconsin - Madison",null,"None","Midwest","South Dakota State University","---","---",null,"Midwest","South Dakota State University","---","---",null,"Midwest","South Dakota State University","---","---",null,"Midwest","South Dakota State University","---","---",null,"Midwest","South Dakota State University","---","---",null,"Midwest","South Dakota State University","---","---",null,"Midwest","South Dakota State University","---","---"]
["Midwest","University of Wisconsin, Platteville",null,"None","MidCont","Southern Illinois University Carbondale","---","---",null,"MidCont","Southern Illinois University Carbondale","---","---",null,"MidCont","Southern Illinois University Carbondale","---","---",null,"MidCont","Southern Illinois University Carbondale","---","---",null,"MidCont","Southern Illinois University Carbondale","---","---",null,"MidCont","Southern Illinois University Carbondale","---","---",null,"MidCont","Southern Illinois University Carbondale","---","---"]
["RockyMtn","University of Wyoming",null,"None","MidAtlantic","Temple University","---","---",null,"MidAtlantic","Temple University","---","---",null,"MidAtlantic","Temple University","---","---",null,"MidAtlantic","Temple University","---","---",null,"MidAtlantic","Temple University","---","---",null,"MidAtlantic","Temple University","---","---",null,"MidAtlantic","Temple University","---","---"]
["RockyMtn","US Air Force Academy",null,"None","PacSW","University of California, San Diego","---","---",null,"PacSW","University of California, San Diego","---","---",null,"PacSW","University of California, San Diego","---","---",null,"PacSW","University of California, San Diego","---","---",null,"PacSW","University of California, San Diego","---","---",null,"PacSW","University of California, San Diego","---","---",null,"PacSW","University of California, San Diego","---","---"]
["RockyMtn","Utah State University",null,"None","Midwest","University of Iowa","---","---",null,"Midwest","University of Iowa","---","---",null,"Midwest","University of Iowa","---","---",null,"Midwest","University of Iowa","---","---",null,"Midwest","University of Iowa","---","---",null,"Midwest","University of Iowa","---","---",null,"Midwest","University of Iowa","---","---"]
["SoEast","Vanderbilt University",null,"None","OhioValley","University of Kentucky","---","---",null,"OhioValley","University of Kentucky","---","---",null,"OhioValley","University of Kentucky","---","---",null,"OhioValley","University of Kentucky","---","---",null,"OhioValley","University of Kentucky","---","---",null,"OhioValley","University of Kentucky","---","---",null,"OhioValley","University of Kentucky","---","---"]
["Virginias","Virginia Military Institute",null,"None","MidCont","University of Oklahoma","---","---",null,"MidCont","University of Oklahoma","---","---",null,"MidCont","University of Oklahoma","---","---",null,"MidCont","University of Oklahoma","---","---",null,"MidCont","University of Oklahoma","---","---",null,"MidCont","University of Oklahoma","---","---",null,"MidCont","University of Oklahoma","---","---"]
["Virginias","Virginia Polytechnic And State University",null,"None","PacSW","University of Southern California","---","---",null,"PacSW","University of Southern California","---","---",null,"PacSW","University of Southern California","---","---",null,"PacSW","University of Southern California","---","---",null,"PacSW","University of Southern California","---","---",null,"PacSW","University of Southern California","---","---",null,"PacSW","University of Southern California","---","---"]
["PacNW","Washington State University",null,"None","MidPac","University of the Pacific","---","---",null,"MidPac","University of the Pacific","---","---",null,"MidPac","University of the Pacific","---","---",null,"MidPac","University of the Pacific","---","---",null,"MidPac","University of the Pacific","---","---",null,"MidPac","University of the Pacific","---","---",null,"MidPac","University of the Pacific","---","---"]
["NewEngland","Wentworth Institute of Technology",null,"None","MidAtlantic","Villanova University","---","---",null,"MidAtlantic","Villanova University","---","---",null,"MidAtlantic","Villanova University","---","---",null,"MidAtlantic","Villanova University","---","---",null,"MidAtlantic","Villanova University","---","---",null,"MidAtlantic","Villanova University","---","---",null,"MidAtlantic","Villanova University","---","---"]
["NorthCentral","Western Michigan University",null,"None","Virginias","West Virginia University","---","---",null,"Virginias","West Virginia University","---","---",null,"Virginias","West Virginia University","---","---",null,"Virginias","West Virginia University","---","---",null,"Virginias","West Virginia University","---","---",null,"Virginias","West Virginia University","---","---",null,"Virginias","West Virginia University","---","---"]
["MidAtlantic","Widener University",null,"None","Virginias","West Virginia University Institute of Technology","---","---",null,"Virginias","West Virginia University Institute of Technology","---","---",null,"Virginias","West Virginia University Institute of Technology","---","---",null,"Virginias","West Virginia University Institute of Technology","---","---",null,"Virginias","West Virginia University Institute of Technology","---","---",null,"Virginias","West Virginia University Institute of Technology","---","---",null,"Virginias","West Virginia University Institute of Technology","---","---"]
["OhioValley","Youngstown State University",null,"None","OhioValley","Western Kentucky University","---","---",null,"OhioValley","Western Kentucky University","---","---",null,"OhioValley","Western Kentucky University","---","---",null,"OhioValley","Western Kentucky University","---","---",null,"OhioValley","Western Kentucky University","---","---",null,"OhioValley","Western Kentucky University","---","---",null,"OhioValley","Western Kentucky University","---","---"]

{"sheet":"Results","index":1,"n_rows":175,"n_cols":24,"rows_kept":175,"cut":false,"hidden":false,"merged":[]}
["2011 SSBC Conference Results"]
[]
[]
[null,null,null,null,null,null,null,null,null,null,null,null,null,null,null,null,0]
["This section is a count of the various violations and such",null,null,null,null,null,null,null,null,"This section looks at AVERAGE values for teams hit with various penalties"]
[null,null,null,null,null,null,null,null,null,"The numbers in the boxes are average for the number of teams who had data for each item.  The associated number of teams are to the right"]
[]
[null,null,"Total Bridges",201]
[]
[]
["Display Penalties/Scores"]
["--- Display data is entered separately on the Display Judging Page",null,null,null,null,null,null,null,null,null,null,null,null,null,null,null,null,null,null,"Numbers of teams associate with each data piece"]
["   7.2.2.3:  Correct name on bridge and is the right size",null,null,null,28,"number of violations",null,null,null,null,"A. Average Construction Speed",null,null,null,null,"Clock","Comp. Time"]
[null,null,null,null,null,null,null,null,null,null,null,null,null,null,null,"(Hr:Min:Sec)","decimal time"]
[null,null,null,null,null,null,null,null,null,null,null,"11.8: Time (Hr:Min:Sec)",null,"Const. Time",null,"00:21:21.005",21.350085910652922,null,null,194,194]
["Pre-Construction Check",null,null,null,null,null,null,null,null,null,null,null,null,"Repair Time",null,"00:00:43.988",1.0995901639344263,null,null,122,122]
[null,null,null,null,null,null,null,null,null,null,null,null,null,"Average Total Time:",null,"00:21:48.667",22.04158075601374,null,null,194,194]
["Section 10:  Materials & Components"]
[null,null,null,null,"Number of"]
[null,null,null,null,"Components",null,null,null,null,null,null,null,null,null,null,"Const.","Repair"]
[null,null,null,null,"in Violation",null,null,null,null,null,null,"Section 11.4 Accidents",null,null,null,"Number","Number","decimal time"]
["   10.2.2: Not all steel",null,null,null,61,"violations",null,null,null,null,null,null,null,"   11.4.2: Temporary pier collapse/falls over",null,1.1428571428571428,0,0.5714285714285714,null,7,0,7]
["   10.2.3.1: Member fails rigidity requirement; loose parts, and/or",null,null,null,null,null,null,null,null,null,null,null,null,"   11.4.3: Non-barge builder touches river, wetland, out of bounds",null,2.1343283582089554,1.5,1.0845588235294117,null,67,2,68]
["   10.2.3.2: Member dimensional violations, and/or",null,null,null,null,null,null,null,null,null,null,null,null,"   11.4.4: Barge builder touches \"dry\" ground, wetlands, out of bounds",null,2.0793650793650795,1.5,1.09375,null,63,4,64]
["   10.2.3.3: Violates member component requirements",null,null,null,384,"member violations",null,null,null,null,null,null,null,"   11.4.5: Prohibited items touching ground or river outside staging yard",null,6.3216374269005851,1.75,1.6111111111111112,null,171,8,171]
["   10.2.4.1: Specialty/custom bolts or nuts, and/or",null,null,null,null,null,null,null,null,null,null,null,null,null,null,null,"Average 11.4 Penalty time",2.3778089887640448,"minutes",null,null,178]
["   10.2.4.2: Violates bolt specification, and/or"]
["   10.2.4.3: Violates nut specification",null,null,null,138,"fastener violations"]
[null,null,null,"Total Violations",583,null,null,null,null,null,null,null,null,null,null,"# Violations","decimal time"]
[null,null,null,null,null,null,null,null,null,null,null,"12.2 Damage","Nut falls off",null,null,0,0,"minutes",null,0,0]
[]
["Check members and cables.  Tape or mark potentially adjustable parts",null,null,null,null,null,null,null,null,null,null,"Load Test Penalties",null,"Lateral","Vert. #1","Vert #2"]
["   10.2.3.3: Rigid member stays joined together.",null,null,null,null,null,null,null,null,null,null,null,"Rules 12.4 or 12.5._.a-e",0,0,14.347826086956522,null,null,null,0,0,69]
[]
["The bridge is ruled ineligible if any of the following rules are violated.  Check all that apply.",null,null,null,null,null,null,null,null,null,null,null,null,null,null,null,"Average Penalized Time:",0,"minutes",0]
[1,"   10.1.2: Member weighs more than 20 lbs"]
[0,"   11.2.4: Builder not properly equipped with req'd personal protective equipment",null,null,null,null,null,null,null,null,"B.  Average Lightness"]
[0,"   11.2.6: Use of tool weighing more than 20 lbs or exceeds 3'-0\" in any direction",null,null,null,null,null,null,null,null,null,"Bridge Weight:"]
[1,"   11.2.7: Use of temporary pier weighing more than 20 lbs or exceeds 1'-6\" horz. dim.",null,null,null,null,null,null,null,null,null,null,null,null,"Pier 1","Pier 2","Actual Wt"]
[null,null,null,null,null,null,null,null,null,null,null,null,null,"Side 1",0,70.86056338028169,128.26197183098591,"lbs",null,142,142]
["Number of TEMPORARY PIERS in yard",null,null,294,"Piers",null,null,null,null,null,null,null,null,"Side 2",0,67.657922535211256,145.15033557046982,"lbs",null,142,149]
[null,null,null,null,null,null,null,null,null,null,null,null,null,null,null,"Average Total ",0,"lbs",null,142,0]
["Construction Judging"]
[null,null,null,null,null,null,null,null,null,null,null,"Average Display Weight Penalties:  Section 7.2.2"]
["TOTAL Number of BUILDERS (11.1.5):",null,null,879,"Builders (including barge(s))",null,null,null,null,null,null,null,null,null,null,null,"Add Wt"]
[null,null,null,null,null,null,null,null,null,null,null,null,null,"Chapter Name",null,0,0,"lbs",null,0,0]
["Bridge is ineligible if the bridge cannot be built without/because:  (Check applicable rule if ruled ineligible)",null,null,null,null,null,null,null,null,null,null,null,null,"Poster",null,0,0,"lbs",null,0,0]
[5,"   6:  Judges deem the bridge construction process is hazardous for any reason",null,null,null,null,null,null,null,null,null,null,null,null,null,null,0,"lbs",null,null,0]
[0,"   9.2.8:  Bridge not compatible with local conditions."]
[0,"   10.1.3 Energy conversion device",null,null,null,null,null,null,null,null,null,"Average Weight Penalties:  Section 9.3"]
[0,"   11.1.5 Bridge cannot be built with less than seven builders of which only three can be barges.",null,null,null,null,null,null,null,null,null,null,null,"< 1/2\"","> 1/2\" to < 1\"","> 1\" to < 2\"","Total"]
[0,"   11.2.2: Exposure of builder to personal injury during construction",null,null,null,null,null,null,null,null,null,"Num. of Rules Violated",null,1.875,1.2222222222222223,1.0769230769230769,"9.2 Wt",null,null,104,18,13]
[0,"   11.2.3: Someone other than builders & judges in construction site"]
[0,"   11.2.4: Wearing protective gear correctly",null,null,null,null,null,null,null,null,null,"Average Penalty Wt.",null,93.75,183.33333333333334,323.07692307692309,156.81818181818181,null,null,104,18,13,110]
[0,"   11.2.5: Use of welding equip or external power connection"]
[0,"   11.2.6: Use of an illegal tool",null,null,null,null,null,null,null,null,null,"Average Weight Penalties:  Section 9.4",null,null,"Violations",null,"9.3 Weight"]
[0,"   11.2.7: Use of an illegal pier",null,null,null,null,null,null,null,null,null,null,null,null,8.1904761904761898,null,204.76190476190476,null,null,42,null,42]
[0,"   11.2.8: Application of lubricant"]
[0,"   11.3.2: Improper sequence of constructing CP",null,null,null,null,null,null,null,null,null,"Average Weight Penalties:  Section 10.2",null,null,"Violations",null,"10.2 Weight"]
[0,"   11.3.3: Member contacting another member when not in CP",null,null,null,null,null,null,null,null,null,null,null,null,10.206896551724139,null,255.17241379310346,null,null,58,null,58]
[1,"   11.3.4: Bearing surfaces remaining on foundation"]
[0,"   11.3.5: Single member on temp pier not supported by a builder",null,null,null,null,null,null,null,null,null,"Average Load Test Penalties"]
[0,"   11.3.6: Move temporary pier while pier supports CP",null,null,null,null,null,null,null,null,null,null,null,"Lateral","Vert. #1","Vert #2",null,"Average"]
[0,"   11.3.7: A builder remove or incorrectly wear safety equipment",null,null,null,null,null,null,null,null,null,null,"Rules 12.4 or 12.5._.a-e",900,800,700,null,"Weight",null,69,12,21]
[0,"   11.3.8: Items being thrown",null,null,null,null,null,null,null,null,null,null,null,null,null,null,null,1770.5203305612515,"lbs",190]
[0,"   11.3.9: A builder crossing wetland or river"]
[0,"   11.3.10: Builder lifting, carrying or supporting more than one item"]
[0,"   11.3.11: Builder removing clothing and/or pouch",null,null,null,null,null,null,null,null,"2011 ASCE/AISC Student Steel Bridge Competition Average Values- page 2/2"]
[0,"   11.3.12: A builder using the bridge or tool for physical support",null,null,null,null,null,null,null,null,0,null,null,null,null,0]
[0,"   11.3.13: A builder relying on support from another builder"]
[0,"   11.4.1: Intentionally causing an accident"]
[0,"   11.5.2: Non-builders in the work site"]
[null,null,null,null,null,null,null,null,null,null,"D. Stiffness"]
[null,null,null,null,null,"During Construction","During Repair",null,null,null,null,"Load Test Penalties",null,"Lateral","Vert. #1","Vert #2"]
["Section 11.4 Accidents",null,null,null,null,"Number","Number",null,null,null,null,null,"Rules 12.4 or 12.5._.a-e",30,30,30,null,null,null,69,12,21]
["   11.4.2: Temporary pier collapse/falls over",null,null,null,null,8,0]
["   11.4.3: Non-barge builder touches river, wetland, out of bounds",null,null,null,null,143,3,null,null,null,null,"Vertical Load Test"]
["   11.4.4: Barge builder touches \"dry\" ground, wetlands, out of bounds",null,null,null,null,131,6]
["   11.4.5: Prohibited items touching ground or river outside staging yard",null,null,null,null,1081,14]
[]
[null,null,null,"(Hr:Min:Sec)",null,null,"(Hr:Min:Sec)"]
[null,null,"11.7.1 Regular Construction Clock Time",2.8763296296296299,null,"11.10 Repair Time:","01:29:26.590",null,null,null,null,null,"Average DB1:",0.48883859813084107,null,null,null,null,null,107]
[null,null,null,"00:20:36.392","average",null,null,null,null,null,null,null,"Average DB2:",0,null,null,null,null,null,104]
["Post-Construction Check",null,null,null,null,null,null,null,null,null,null,null,"Contest value",0.7673011111111111,0.29998859999999999,0.21049744774477444,1.241922427983539,"in",null,108,100,101,108]
[]
["Section 9: Dimension & Support",null,null,null,null,null,null,null,null,null,null,null,null,null,null,null,"Aggregate Deflection = ",16.158640190664038,"in",169]
[]
["The bridge is to be declared ineligible if any of the following rules are violated:  (Check all that apply)",null,null,null,null,null,null,null,null,null,"E. Average Construction Economy"]
[0,"   9.2.5: Bridge does not provide access for placing decking & load"]
[0,"   9.2.6: Decking attached/anchored to bridge or distorts bridge",null,null,null,null,null,null,null,null,"Cc =",4.3731343283582094,"bldrs    x",54.829026217228467,"min. x",null,null,222855631.44330156,null,201,null,178,null,194]
[0,"   9.2.7: Bridge is anchored or tied to ground",null,null,null,null,null,null,null,null,null,null,null,1.7294117647058824,"piers x",null,null,51882.352940588236,null,null,null,170,null,170]
[0,"   9.2.8: Bridge cannot accommodate local conditions",null,null,null,null,null,null,null,null,null,null,null,null,null,null,"Cc     =",215849343.97574121,null,null,null,null,null,170]
[0,"   10.1.4: External energy transmitted to bridge."]
[null,null,null,null,null,null,null,null,null,null,"F.  Average Structural Efficiency"]
["Check (i.e. add a \"1\") the rules that are violated, the number of violations for each rule is not relevant"]
["ONLY ENTER DATA IN CELLS THAT HAVE VIOLATIONS - LEAVE ALL OTHER CELLS EMPTY!!!",null,null,null,null,null,null,null,null,null,"Cs  =",null,"Average Penalized Weight",830.51368421052632,"lbs      x",null,null,3322054.7368442109,null,null,null,190,null,190]
[null,null,null,"Dimensional Violation",null,null,null,null,null,null,null,null,"Average Aggregate D ^1.5",86.87910416443664,"in       x",null,null,104254924.99733374,null,null,null,169,null,169]
[null,null,null,"< 1/2\"","> 1/2\" to < 1\"","> 1\" to < 2\"","> 2\" IE",null,null,null,null,null,null,null,null,null,"Average Cs  =",96054066.971314743,null,null,null,null,null,190]
["   9.3.2: Non Cant. end too long",null,null,3,3,0,1]
["   9.3.3: Parts extend beyond decking support",null,null,25,4,4,1,null,null,null,"G. Average Overall Performance"]
["   9.3.4: Decking support too long or too short",null,null,8,1,0,2,null,null,null,null,null,null,null,null,null,"Average Overall Performance:  Cc + Cs",115672059.26875465,null,null,null,null,null,161]
["   9.3.5: Inside deck supports < 30\"",null,null,48,3,3,5]
["   9.3.6: Outside deck supports >36\"",null,null,21,1,2,2]
["   9.3.7: Deck support not 'smooth'",null,null,39,0,0,0]
["   9.3.8: Gaps >1/4\" in deck support",null,null,4,0,0,0]
["   9.3.9: Deck support too high (33\" max)",null,null,31,3,1,0]
["   9.3.10: Clearance under bridge < 12\"",null,null,19,3,1,0]
["   9.3.11: Passageway clearance violation",null,null,25,4,3,7]
["   9.3.12: Bridge bears outside footing easements",null,null,1,0,0,0]
[null,null,null,null,null,null,null,null,null,null,"Number of bridges ruled IE for each rule"]
[]
[null,null,null,null,null,null,null,null,null,null,"Number"]
[null,null,null,null,"Number",null,null,null,null,1,0,"   3:  Bridge is unsuitable for intended purpose. (May be determined after form is printed)"]
[null,null,null,null,"of"]
[null,null,null,null,"Violations",null,null,null,null,6,0,"  Did not participate in competition"]
["   9.4.2: Member/Member conn. w/o fastener",null,null,null,284]
["   9.4.3: Fastener connects more than 2 members",null,null,null,2,null,null,null,null,7,0,"   6:  Judges deem the bridge construction process is hazardous for any reason"]
["   9.4.4: Bolt through holes / Hole size",null,null,null,3,null,null,null,null,8,0,"   6:  Judges deem the bridge loading to be hazardous for any reason."]
["   9.4.5: No threaded holes for fasteners",null,null,null,0]
["   9.4.6: Bolt fully engages threads of nut",null,null,null,55,null,null,null,null,11,0,"   9.2.5: Bridge does not provide access for placing decking & load"]
[null,null,null,"Total violations",344,null,null,null,null,12,0,"   9.2.6: Decking attached/anchored to bridge or distorts bridge"]
[null,null,null,null,null,null,null,null,null,13,0,"   9.2.7: Bridge is anchored or tied to ground"]
["Section 10:  Materials & Components",null,null,null,null,null,null,null,null,14,0,"   9.2.8: Bridge cannot accommodate local conditions"]
[null,null,null,null,"Number"]
[null,null,null,null,"of",null,null,null,null,15,0,"   9.3 Excessive dimensional violation."]
["See Pre-Construction check:",null,null,null,"Violations"]
["   10.2.3.3:  Member changed during construction",null,null,null,2,null,null,null,null,16,0,"   10.1.2: Member weighs more than 20 lbs"]
["   10.2.4.1:  Bolts without nuts",null,null,null,7,null,null,null,null,17,0,"   10.1.3 Energy conversion device"]
[null,null,"Totals",null,9,null,null,null,null,18,0,"   10.1.4: External energy transmitted to bridge."]
[]
["Input from Load Station Judging Form",null,null,null,null,null,null,null,null,19,0,"   11.1.5 Bridge cannot be built with less than seven builders of which only three can be barges."]
[null,null,null,null,null,null,null,null,null,20,0,"   11.2.2: Exposure of builder to personal injury during construction"]
["Check for Damage in Transit",null,null,null,null,null,null,null,null,21,0,"   11.2.3: Someone other than builders & judges in construction site"]
[null,null,null,null,null,null,null,null,null,22,0,"   11.2.4: Wearing protective gear correctly"]
["Section 12.2 Damage",null,"Number of nuts that fall off",null,null,0,null,null,null,23,0,"   11.2.5: Use of welding equip or external power connection"]
[" ",null,null,null,null,null,null,null,null,24,0,"   11.2.6: Use of an illegal tool"]
["The bridge is ineligible if any of the following rules are violated.  Check (i.e. add a \"1\") all that apply.",null,null,null,null,null,null,null,null,25,0,"   11.2.7: Use of an illegal pier"]
[null,null,null,null,null,null,null,null,null,26,0,"   11.2.8: Application of lubricant"]
[1,"   6:  Judges deem the bridge loading to be hazardous for any reason.",null,null,null,null,null,null,null,27,0,"   11.3.2: Improper sequence of constructing CP"]
[0,"   9.2.5: Bridge does not provide access for placing decking & load",null,null,null,null,null,null,null,28,0,"   11.3.3: Member contacting another member when not in CP"]
[0,"   9.2.6: Decking attached/anchored to bridge or distorts bridge",null,null,null,null,null,null,null,29,0,"   11.3.4: Bearing surfaces remaining on foundation"]
[0,"   9.2.7: Bridge is anchored or tied to ground",null,null,null,null,null,null,null,30,0,"   11.3.5: Single member on temp pier not supported by a builder"]
[0,"   9.2.8: Bridge cannot accommodate local conditions",null,null,null,null,null,null,null,31,0,"   11.3.6: Move temporary pier while pier supports CP"]
[0,"   12.1:  Safety precautions (missing safety equipment, hazardous conditions) violated.",null,null,null,null,null,null,null,32,0,"   11.3.7: A builder remove or incorrectly wear safety equipment"]
[0,"   12.2:  Condition of bridge is considered to be unsafe (strength and/or stability)",null,null,null,null,null,null,null,33,0,"   11.3.8: Items being thrown"]
[0,"   12.2:  Irreparable damage anytime after construction (including during transport)",null,null,null,null,null,null,null,34,0,"   11.3.9: A builder crossing wetland or river"]
[null,null,null,null,null,null,null,null,null,35,0,"   11.3.10: Builder lifting, carrying or supporting more than one item"]
[null,null,null,null,null,null,null,null,null,36,0,"   11.3.11: Builder removing clothing and/or pouch"]
["Lateral Load Test",null,"Defl < 1/2\"?",null,null,null,null,null,null,37,0,"   11.3.12: A builder using the bridge or tool for physical support"]
[null,"12.4.2: Back Span",19,null,null,null,null,null,null,38,0,"   11.3.13: A builder relying on support from another builder"]
[null,"12.4.3: Cantilever",57,null,null,null,null,null,null,39,0,"   11.4.1: Intentionally causing an accident"]
[null,null,null,null,null,null,null,null,null,40,0,"   11.5.2: Non-builders in the work site"]
[null,null,null,null,null,null,null,null,null,41,0,"   11.8.2: Time Limit"]
[]
[null,null,null,null,null,null,null,null,null,42,0,"   12.1:  Safety precautions (missing safety equipment, hazardous conditions) violated."]
[null,null,null,null,null,null,null,null,null,43,0,"   12.2:  Condition of bridge is considered to be unsafe (strength and/or stability)"]
[null,null,null,null,null,null,null,null,null,44,0,"   12.2:  Irreparable damage anytime after construction (including during transport)"]
[]
[]
["12.5 Stop Loading Violations",null,null,null,"Step #1","Step #2"]
[null,null,null,null,"12.5.2","12.5.3"]
[null,null,null,"a: Excessive Sway",7,4]
[null,null,null,"b/b.1: Excessive Backspan Deflection",6,2]
[null,null,null,"b.2: Excessive Cantilever Deflection",0,16]
[null,null,null,"c: Contact with Safety Support or Ground",0,0]
[null,null,null,"d: Decking or load falls off bridge",0,0]
[null,null,null,"e: Collapse or dangerous imminent collapse",3,2]
[]
["Input from Weigh Station Form"]
[]
[null,null,null,"Left","Right"]
[null,null,"Side A",8151.0000000000009,10062.200000000001]
[null,null,"Side B",8822.7999999999993,12866.6]
[]
[null,null,"Total",39902.6,"lbs"]